Cogmind - Beta 10.2 @@@ ROGUE MODE // 2020.11.14 @ 21:16:35 // Halloween2020/ForbiddenLore Player: Boris Result: Escaped! Performance ------------- Evolutions (9) 4500 Regions Visited (35) 7000 Robots Destroyed (381) 1905 Value Destroyed (22411) 22411 Prototype IDs (114) 2280 Alien Tech Used (15) 3000 Bonus (27846) 27846 TOTAL SCORE: 68942 Bonus ------- Triggered High Security 500 High Alert Combat Kills 5733 Follower Combat Kills 632 Aligned with FarCom 300 Met Data Miner 300 Destroyed Z-Imprinter 1000 Met Zhirov 300 Met Warlord at Base 500 MAIN.C Attacked Warlord 500 Warlord Defense Kill 1220 Met Warlord at Research 2000 Met Sigix 2000 Destroyed MAIN.C Guards 500 Met MAIN.C 5000 Destroyed MAIN.C Shell 5000 Met Warlord at Command 2000 Win 3000 Friendly Fire -2639 Cogmind --------- Core Integrity 864/1600 Matter 271/300 Energy 158/700 System Corruption 7% Temperature Cool (10) Movement Hovering (24) Location To Epsilon Eridani Parts ------- > --- POWER (2) -------- Vortex Chain Reactor > --- PROPULSION (5) --- Combat Antigrav System Combat Linear Gravjet Combat Linear Gravjet Combat Linear Gravjet Combat Linear Gravjet > --- UTILITY (15) ----- Large Storage Unit Large Storage Unit Large Storage Unit Zionite Metafield Generator Experimental Optical Array Advanced Targeting Computer Experimental Core Analyzer Advanced Armor Integrity Analyzer Advanced Reaction Control System Experimental Phase Shifter SHELL Armor Improved Thermal Shield Experimental Hardlight Generator > --- WEAPON (4) ------- Sigix Quantum Sheargun Sigix Quantum Sheargun Sigix Broadsword > --- INVENTORY (24) --- Vortex Chain Reactor Experimental Coolant Injector Experimental Energy Well (1000) Experimental Matter Compressor (453) Precision Matter Filter Advanced Weapon Cycler 8R-AWN's Armor/EX Experimental Focal Shield EM Dispersion Field Advanced Force Field Integrity Redistributor Matter Drive EMDS Cooled Nova Cannon Core Cannon 5H-AD0's Sniper Rifle Gamma Bomb Array Mini Smartbomb Launcher Peak State ------------ > --- POWER ------------ Vortex Chain Reactor > --- PROPULSION ------- Combat Antigrav System Combat Linear Gravjet Combat Linear Gravjet Combat Linear Gravjet Combat Linear Gravjet > --- UTILITY ---------- Large Storage Unit Large Storage Unit Large Storage Unit Experimental Optical Array Advanced Targeting Computer Experimental Core Analyzer Advanced Armor Integrity Analyzer Advanced Weapon Cycler Advanced Reaction Control System Experimental Phase Shifter SHELL Armor Experimental Focal Shield Experimental Hardlight Generator > --- WEAPON ----------- Sigix Quantum Sheargun 5H-AD0's Sniper Rifle Sigix Broadsword > --- INVENTORY -------- Vortex Chain Reactor Experimental Coolant Injector Experimental Energy Well Experimental Energy Well Matter Compressor Zionite Metafield Generator Precision Matter Filter 8R-AWN's Armor/EX Improved Thermal Shield EM Dispersion Field Advanced Force Field Integrity Redistributor Matter Drive Sigix Quantum Sheargun EMDS Cooled Nova Cannon Core Cannon Gamma Bomb Array Mini Smartbomb Launcher [Rating: 246] Favorites ----------- Power Vortex Chain Reactor Engine Ion Engine Power Core Reinforced Fission Core Reactor Vortex Chain Reactor Propulsion Combat Antigrav System Treads Light Treads Leg Advanced Myomer Leg Wheel Wheel Hover Unit Combat Antigrav System Utility Large Storage Unit Device Experimental Sensor Array Storage Large Storage Unit Processor Advanced Signal Interpreter Hackware Hacking Suite Protection SHELL Armor Artifact Matter Drive Weapon Flak Gun Energy Gun Sigix Quantum Sheargun Energy Cannon Plasma Cannon Ballistic Gun Flak Gun Ballistic Cannon Light Antimatter Cannon Launcher Guided Missile Launcher Impact Weapon Hammer Slashing Weapon Sigix Broadsword Piercing Weapon Kinetic Spear Special Melee Weapon Datajack Build | -11 -10 -10 -10 -9 -8 -7 -7 -7 -7 -7 -6 -6 -6 -6 -6 -6 -6 -5 -5 -5 -5 -5 -4 -4 -4 -4 -4 -3 -3 -3 -3 -2 -2 -1 -1 ------- Run | Scr Mat Min Exi Min Mat Fac Low Low Zio Dee Pro Fac Was Fac Low Low Dat Pro Fac Upp Upp War Pro Fac Upp Upp Zhi Pro Res Qua Sec Res Tes Acc Com Slots Evolved 18 | . . . . . 4 2 . . . . . 2 . . . . . . 2 . . . . 2 . . . . 2 . . 2 . 2 . Power 1 | . . . . . . . . . . . . . . . . . . . 1 . . . . . . . . . . . . . . . . Propulsion 2 | . . . . . 1 . . . . . . 1 . . . . . . . . . . . . . . . . . . . . . . . Utility 13 | . . . . . 2 2 . . . . . 1 . . . . . . 1 . . . . 2 . . . . 2 . . 1 . 2 . Weapon 2 | . . . . . 1 . . . . . . . . . . . . . . . . . . . . . . . . . . 1 . . . Parts Attached 658 | 6 14 8 19 11 49 24 7 4 11 40 3 29 6 8 17 6 9 2 36 7 13 26 2 12 2 1 7 8 3 30 75 14 26 31 92 Power 19 | . 5 1 2 2 . . . . . 2 . . 1 . . . . . 2 . . 2 . . . . . . . . . . . . 2 Engine 8 | . 5 1 1 1 . . . . . . . . . . . . . . . . . . . . . . . . . . . . . . . Core 3 | . . . 1 1 . . . . . 1 . . . . . . . . . . . . . . . . . . . . . . . . . Reactor 8 | . . . . . . . . . . 1 . . 1 . . . . . 2 . . 2 . . . . . . . . . . . . 2 Propulsion 40 | 2 2 . 3 1 6 3 . . 2 3 . 1 . . . . . . . . . 3 . . . . . . . 3 . 1 2 5 3 Treads 1 | 1 . . . . . . . . . . . . . . . . . . . . . . . . . . . . . . . . . . . Leg 11 | . . . 3 1 6 . . . . . . . . . . . . . . . . . . . . . . . . . . . . . 1 Wheel 3 | 1 2 . . . . . . . . . . . . . . . . . . . . . . . . . . . . . . . . . . Hover 25 | . . . . . . 3 . . 2 3 . 1 . . . . . . . . . 3 . . . . . . . 3 . 1 2 5 2 Flight . | . . . . . . . . . . . . . . . . . . . . . . . . . . . . . . . . . . . . Utility 287 | 2 3 1 3 . 7 10 4 1 4 19 2 19 . . 4 . 6 1 19 5 11 17 . 2 2 1 7 3 3 18 38 5 9 12 49 Device 180 | . . . . . 1 4 2 1 3 10 1 12 . . 4 . 2 1 10 4 10 13 . 1 1 1 7 3 2 10 25 4 5 9 34 Storage 15 | 2 2 1 2 . . . . . . 1 . 2 . . . . 1 . 1 . . . . . . . . . . . . . 1 . 2 Processor 14 | . 1 . . . . 1 . . 1 . . . . . . . . . 1 . . 3 . 1 . . . . . 1 . . 1 1 3 Hackware 14 | . . . . . 1 2 . . . 1 . 2 . . . . . . 3 . . . . . 1 . . . . . . . 1 1 2 Protection 58 | . . . 1 . 5 3 2 . . 7 1 3 . . . . 3 . 4 1 1 1 . . . . . . 1 7 8 1 1 1 7 Artifact 6 | . . . . . . . . . . . . . . . . . . . . . . . . . . . . . . . 5 . . . 1 Weapon 312 | 2 4 6 11 8 36 11 3 3 5 16 1 9 5 8 13 6 3 1 15 2 2 4 2 10 . . . 5 . 9 37 8 15 14 38 Energy Gun 35 | 1 1 . . . . . . . . 4 . 3 1 . . . . . . . . 1 . . . . . . . . 1 3 3 2 15 Energy Cannon 57 | . . . 1 . 12 3 1 1 1 1 . . . . 1 . . . 3 . 1 . . . . . . 1 . 2 18 . 6 1 4 Ballistic Gun 127 | 1 1 3 5 6 18 6 1 2 1 3 . 3 4 7 7 5 2 1 8 2 1 1 2 10 . . . 4 . 4 3 3 2 3 8 Ballistic Cannon 4 | . . . . . . . . . . . . . . . . . . . . . . . . . . . . . . . . . . . 4 Launcher 41 | . 1 2 1 1 5 2 1 . 1 3 . 1 . . 2 . . . . . . . . . . . . . . . 3 2 3 8 5 Special Weapon . | . . . . . . . . . . . . . . . . . . . . . . . . . . . . . . . . . . . . Impact Weapon 3 | . 1 1 1 . . . . . . . . . . . . . . . . . . . . . . . . . . . . . . . . Slashing Weapon 31 | . . . 1 1 1 . . . 2 5 . . . . . . . . 1 . . 2 . . . . . . . 3 12 . 1 . 2 Piercing Weapon 12 | . . . . . . . . . . . 1 2 . 1 3 1 1 . 3 . . . . . . . . . . . . . . . . Special Melee Weapon 2 | . . . 2 . . . . . . . . . . . . . . . . . . . . . . . . . . . . . . . . Unidentified Prototypes 70 | . . . . . 1 . . . 2 10 1 . . . . . . . 4 1 . 7 . . . . 3 . . 5 10 . 8 . 18 Parts Lost 30 | . 4 1 3 2 . 1 . 1 . 1 . 4 . . . 1 . . 2 . . . . . 1 . . . . . 2 3 1 2 1 Power 5 | . 2 . 1 1 . . . . . . . . . . . . . . 1 . . . . . . . . . . . . . . . . Propulsion 2 | . 1 . 1 . . . . . . . . . . . . . . . . . . . . . . . . . . . . . . . . Utility 14 | . . . 1 . . . . 1 . . . 1 . . . . . . 1 . . . . . 1 . . . . . 2 3 1 2 1 Weapon 9 | . 1 1 . 1 . 1 . . . 1 . 3 . . . 1 . . . . . . . . . . . . . . . . . . . Highest Loss Streak 3 | . 3 1 3 1 . 1 . 1 . 1 . 2 . . . 1 . . 1 . . . . . 1 . . . . . 1 2 1 1 1 Average Slot Usage (%) 93 | . 99 99 97 99 98 99 100 99 99 94 92 96 96 100 96 94 100 100 99 95 94 94 94 95 94 95 95 94 92 87 88 84 78 78 81 Engine 1 | . 13 14 9 1 . . . . . . . . . . . . . . . . . . . . . . . . . . . . . . . Core 2 | . . . 4 11 9 7 7 7 7 7 7 6 3 . . . . . . . . . . . . . . . . . . . . . . Reactor 2 | . . . . . . . . . . . . . 2 6 6 6 6 6 10 11 11 6 5 5 5 5 5 5 4 4 4 4 4 3 2 Treads 1 | . 14 14 6 . . . . . . . . . . . . . . . . . . . . . . . . . . . . . . . . Leg 3 | . . . 15 28 26 11 . . . . . . . . . . . . . . . . . . . . . . . . . . . . . Wheel 1 | . 13 14 6 . . . . . . . . . . . . . . . . . . . . . . . . . . . . . . . . Hover 18 | . . . . . . 11 23 23 23 22 23 26 26 26 26 26 26 26 23 22 22 25 27 25 25 25 25 25 22 22 22 20 20 18 18 Device 7 | . . . . . 1 3 6 6 6 7 7 5 6 6 6 6 9 6 10 10 10 6 5 10 10 10 10 10 11 11 16 15 11 15 14 Storage 16 | . 23 27 26 28 18 15 15 15 15 15 15 15 20 20 20 20 20 26 17 16 16 16 16 15 15 15 15 15 13 13 13 12 12 11 11 Processor 7 | . 4 . . . . 7 7 7 8 8 7 6 6 6 6 6 6 6 5 5 5 9 11 15 15 15 15 15 13 13 9 8 10 10 12 Hackware 8 | . . . . . 8 18 15 15 13 7 7 12 13 13 13 13 8 . 10 11 11 11 11 10 9 10 10 10 9 9 9 7 2 3 5 Protection 2 | . . . . . 6 . . . . 5 7 4 . . . . . 6 . . . . . . . . . . 4 3 1 . 3 4 3 Energy Gun 1 | . 14 12 . . . . . . . 4 . 7 . . . . . . . . . . . . . . . . . . . 3 3 . 3 Energy Cannon 1 | . . . . . 7 5 2 1 1 1 . . . . . . . . . 1 1 . . . . . . . . . 3 . 1 . . Ballistic Gun 8 | . 11 12 9 27 19 16 15 21 15 2 . 1 13 17 11 9 15 13 11 3 3 5 5 5 5 5 5 4 4 4 . 2 2 1 1 Launcher 1 | . . . . . . . 4 . . 5 7 1 . . 2 4 . . . . . . . . . . . . . . . . . 1 . Slashing Weapon 2 | . . . 3 . . . . . 4 2 1 . . . . . . . . 5 5 4 5 5 5 5 5 5 4 4 3 4 4 3 2 Piercing Weapon 1 | . . . . . . . . . . . 5 5 2 1 1 . 3 6 2 5 5 5 5 5 5 5 5 5 4 . . . . . . Naked Turns . | . . . . . . . . . . . . . . . . . . . . . . . . . . . . . . . . . . . . Heaviest Build 170 | 11 24 41 48 56 71 71 71 68 70 90 69 90 80 83 87 85 88 91 98 92 91 106 99 101 102 102 102 101 106 159 142 153 149 155 170 Greatest Support 158 | 20 20 10 50 50 67 90 90 90 90 90 90 120 90 90 120 90 120 120 120 120 120 132 132 132 132 132 132 132 132 152 132 142 154 158 158 Greatest Overweight (x) 4 | . 2 4 4 1 1 1 . . . 1 . . . . . . . . . . . . . . . . . . . 1 1 1 1 1 1 Average Overweight (x) . | . . 3 1 . . . . . . . . . . . . . . . . . . . . . . . . . . . . . . . . Largest Inventory Capacity 24 | 8 10 16 16 16 16 16 16 16 16 16 16 22 22 22 22 22 22 22 22 22 22 22 22 22 22 22 22 22 22 22 24 24 24 24 24 Average Capacity 19 | 6 8 15 15 16 16 16 16 16 16 16 16 18 22 22 22 22 22 22 22 22 22 22 22 22 22 22 22 22 22 22 22 24 24 24 24 Most Carried 24 | 3 10 13 16 16 16 16 16 16 16 16 16 18 22 22 22 22 22 22 22 22 22 22 22 22 22 21 22 22 22 22 24 24 24 24 24 Average Carried 18 | 2 7 11 14 15 15 15 15 15 15 15 15 16 21 21 21 21 20 21 21 22 22 21 22 21 21 21 21 21 21 21 22 23 23 23 22 Final Capacity 24 | 8 10 16 16 16 16 16 16 16 16 16 16 22 22 22 22 22 22 22 22 22 22 22 22 22 22 22 22 22 22 22 24 24 24 24 24 Final Carried 24 | 3 10 12 15 16 16 16 16 16 16 16 16 17 22 22 22 22 21 22 22 22 22 22 22 22 21 21 22 22 22 22 24 23 24 24 23 Class Distribution -------------------- 24% | Mutant 21% | Hacker-Mutant 18% | Scavenger-Mutant 6% | Hacker-Scout 4% | Scavenger-Scout 4% | Scavenger-Gladiator 3% | Hauler-Mutant Dominant Class ---------------- Mutant | -10/Materials Mutant | -10/Mines Mutant | -10/Exiles Mutant | -9/Mines Scavenger-Tank | -8/Materials Hacker-Mutant | -7/Factory Hacker-Mutant | -7/Lower Caves Hacker-Mutant | -7/Lower Caves Hacker-Mutant | -7/Zion Mutant | -7/Deep Caves Mutant | -6/Proximity Caves Hacker-Mutant | -6/Factory Hauler-Mutant | -6/Waste Scavenger-Mutant | -6/Factory Scavenger-Mutant | -6/Lower Caves Scavenger-Mutant | -6/Lower Caves Scavenger-Mutant | -6/Data Miner Scavenger-Mutant | -5/Proximity Caves Hacker-Mutant | -5/Factory Hacker-Mutant | -5/Upper Caves Hacker-Mutant | -5/Upper Caves Hacker-Mutant | -5/Warlord Hacker-Mutant | -4/Proximity Caves Hacker-Scout | -4/Factory Hacker-Scout | -4/Upper Caves Hacker-Scout | -4/Upper Caves Hacker-Scout | -4/Zhirov Hacker-Scout | -3/Proximity Caves Hacker-Scout | -3/Research Scavenger-Scout | -3/Quarantine Scavenger-Mutant | -3/Section 7 Scavenger-Sprinter | -2/Research Scavenger-Mutant | -2/Testing Scavenger-Gladiator | -1/Access Scavenger-Gladiator | -1/Command Resources | -11 -10 -10 -10 -9 -8 -7 -7 -7 -7 -7 -6 -6 -6 -6 -6 -6 -6 -5 -5 -5 -5 -5 -4 -4 -4 -4 -4 -3 -3 -3 -3 -2 -2 -1 -1 ----------- Run | Scr Mat Min Exi Min Mat Fac Low Low Zio Dee Pro Fac Was Fac Low Low Dat Pro Fac Upp Upp War Pro Fac Upp Upp Zhi Pro Res Qua Sec Res Tes Acc Com Matter Collected 14189 | 275 271 290 683 270 909 634 116 99 60 622 135 550 282 163 880 172 . 113 499 152 166 628 74 271 49 . 86 231 46 311 1623 252 325 594 2358 Remotely 242 | . . . . . . . . . . . . . . . . . . . . . . . . . . . . . . . . 242 . . . Salvage Created 23191 | 98 360 172 462 425 1546 743 . 119 . 421 148 834 787 208 594 313 29 . 914 60 135 589 90 403 136 . 122 361 91 654 3221 964 858 2298 5036 Parts 1138 | 1 27 10 68 34 93 32 1 7 . 33 4 36 19 15 18 11 5 . 34 2 9 38 6 18 4 . . 15 3 42 133 37 54 103 226 Haulers Intercepted 7 | . 2 . . . 1 . . . . . . 1 . . . . . . 1 . . . . . . . . . . . . 1 . 1 . Recyclers Shooed 8 | . 1 . . . 2 . . . . . . . . . . . . . . . . . . . 2 . . . . . . 1 1 . 1 Parts Field Recycled . | . . . . . . . . . . . . . . . . . . . . . . . . . . . . . . . . . . . . Retrieved Matter . | . . . . . . . . . . . . . . . . . . . . . . . . . . . . . . . . . . . . Parts Self-Destructed 245 | . . . . . . . . 6 . . 13 . . . 16 13 . . . 2 5 163 6 . 7 . . 14 . . . . . . . Prevented 22 | . . . . . . . . . . . . . . . . . . . . . 9 13 . . . . . . . . . . . . . Kills | -11 -10 -10 -10 -9 -8 -7 -7 -7 -7 -7 -6 -6 -6 -6 -6 -6 -6 -5 -5 -5 -5 -5 -4 -4 -4 -4 -4 -3 -3 -3 -3 -2 -2 -1 -1 ------- Run | Scr Mat Min Exi Min Mat Fac Low Low Zio Dee Pro Fac Was Fac Low Low Dat Pro Fac Upp Upp War Pro Fac Upp Upp Zhi Pro Res Qua Sec Res Tes Acc Com Combat Hostiles Destroyed 314 | . 7 7 4 18 27 12 3 2 . 9 4 7 . 3 18 5 . . 9 1 2 10 1 2 1 . . 4 1 8 41 13 11 32 52 Melee 54 | . . 1 1 1 . . . . . . . 1 . . 1 . . . 3 . . . . . . . . 1 . 8 17 3 2 9 6 Guns 118 | . 6 1 . 13 12 9 . 1 . 2 . 2 . 3 7 5 . . 6 1 1 10 1 2 1 . . 3 1 . 3 3 3 2 20 Cannons 9 | . . . . . 2 . . 1 . . . . . . . . . . . . . . . . . . . . . . 5 . . . 1 AOE 95 | . 1 4 3 4 10 2 3 . . 7 4 . . . 10 . . . . . . . . . . . . . . . 4 7 1 17 18 Classes Destroyed 27 | 1 5 . 3 1 5 1 . . . 1 . . . . . 1 . . . . 1 2 . . . . . . . . 2 1 . 2 1 Worker 16 | . . . . 1 3 2 . . . . . . . . . . . . . . . . . . . . . . . . 1 1 . 5 3 Builder 7 | . . . . . 1 . . . . . . 3 . . . . . . . . . . . 1 . . . . . . 1 1 . . . Tunneler 3 | . 1 . . . . . . . . . . . . . . . . . 1 . . . . . . . . . . . . . . 1 . Hauler 7 | . 2 . . . 1 . . . . . . 1 . . . . . . 1 . . . . . . . . . . . . 1 . 1 . Recycler 8 | 1 1 . . . 1 . . . . . . 1 . . . . . . 1 . . . . . . . . . . . . 1 . 2 . Minesweeper 1 | . . . . . . . . . . . . . . . . . . . . . 1 . . . . . . . . . . . . . . Mechanic 4 | . . . . . . . . . . . . . . . . . . . . . . . . . . . . . . . 1 . . . 3 Operator 9 | . . . . . 2 . . . . . . 1 . . . . . . 1 . . . . . . . . . . 1 1 1 . 1 1 Drone 4 | . . . . . . . . . . . . . . . . . . . . . . . . . . . . . . . . . . 1 3 Turret 1 | . . . 1 . . . . . . . . . . . . . . . . . . . . . . . . . . . . . . . . Watcher 12 | . 1 . . . 2 . . . . . . . . . . . . . . . . . . 2 . . . . . 1 4 1 . 1 . Swarmer 60 | . 3 3 . 10 6 . 3 . . . . . . . 6 . . . . . 1 1 . . . . . . . . 8 7 . 12 . Saboteur 3 | . . . . . . . . . . . . . . . . . . . . . . . . . . . . . . . . . . 1 2 Grunt 99 | . 4 4 . 7 10 7 . . . . 4 5 . . 9 2 . . 1 . . 3 . . 1 . . 2 . 1 9 1 3 7 19 Brawler 4 | . . . . . . . . . . . . . . . . 1 . . . . . . . . . . . 1 . . . . . . 2 Duelist 8 | . . . . . 2 1 . . . . . . . . 1 1 . . . . . . . . . . . . . . 2 . . 1 . Protector 4 | . . . . . . . . . . . . . . . . . . . . . . 1 . . . . . . . . 1 . . . 2 Sentry 40 | . . . . . 8 3 . 1 . . . 1 . 3 2 . . . 3 . . . 1 2 . . . 1 1 . 6 2 . 3 3 Specialist 1 | . . . . . . . . . . . . . . . . . . . . . . 1 . . . . . . . . . . . . . Hunter 18 | . . . . . 1 . . . . . . . . . . 1 . . . . 1 2 . . . . . . . . 2 2 3 2 4 Programmer 34 | . . . . . . 1 . 1 . . . 1 . . . . . . 5 1 . 2 . . . . . . . 4 9 . 5 5 . Behemoth 1 | . . . . . . . . . . . . . . . . . . . . . . . . . . . . . . . . 1 . . . S7 Guard 2 | . . . . . . . . . . . . . . . . . . . . . . . . . . . . . . . 2 . . . . M Guard 2 | . . . . . . . . . . . . . . . . . . . . . . . . . . . . . . . . . . . 2 Enhanced Q-Series 13 | . . . . . . . . . . . . . . . . . . . . . . . . . . . . . . . . . . . 13 Lightning 3 | . . . . . . . . . . . . . . . . . . . . . . . . . . . . . . 3 . . . . . Combat Programmer 1 | . . . . . . . . . . . . . . . . . . . . . . . . . . . . . . . . . . . 1 Executioner 2 | . . . . . . . . . . . . . . . . . . . . . . . . . . . . . . . 2 . . . . Zionite 8 | . . . 8 . . . . . . . . . . . . . . . . . . . . . . . . . . . . . . . . Z-Light 3 | . . . . . . . . . . 3 . . . . . . . . . . . . . . . . . . . . . . . . . Packrat 1 | . . . . . . . . . . . . . . . . . . . . . . . . . 1 . . . . . . . . . . Assembled 9 | . . . 3 1 . . . . . 5 . . . . . . . . . . . . . . . . . . . . . . . . . Best Kill Streak 13 | 1 3 3 5 4 6 4 3 1 . 3 2 7 . 1 6 3 1 . 2 1 1 2 1 1 1 . . 2 1 2 8 9 3 13 13 Combat Bots Only 12 | . 2 3 3 4 5 4 3 1 . 3 2 4 . 1 6 3 . . 1 1 1 2 1 1 1 . . 2 1 2 6 7 3 11 12 Max Kills in Single Turn 5 | 1 1 2 2 2 3 1 2 1 . 2 2 2 . 1 2 1 1 . 1 1 1 1 1 1 1 . . 1 1 1 4 4 2 5 4 Gunslinging . | . . . . . . . . . . . . . . . . . . . . . . . . . . . . . . . . . . . . Exploded 5 | . 1 2 1 2 3 1 2 . . 2 2 . . . 2 . . . . . . . . . . . . . . . 3 3 1 5 4 Melee 1 | . . 1 1 1 . . . . . . . 1 . . 1 . . . 1 . . . . . . . . 1 . 1 1 1 1 1 1 Uniques/NPCs Destroyed 8 | . . . 4 . . . . . . 2 . . . . . . 1 . . . . . . . . . . . . . . . . . 1 8R-AWN (-10/Exiles) EX-BIN (-10/Exiles) EX-HEX (-10/Exiles) EX-DEC (-10/Exiles) Z-Imprinter (-7/Deep Caves) 5H-AD0 (-7/Deep Caves) Data Miner (-6/Data Miner) MAIN.C Shell (-1/Command) Combat | -11 -10 -10 -10 -9 -8 -7 -7 -7 -7 -7 -6 -6 -6 -6 -6 -6 -6 -5 -5 -5 -5 -5 -4 -4 -4 -4 -4 -3 -3 -3 -3 -2 -2 -1 -1 -------- Run | Scr Mat Min Exi Min Mat Fac Low Low Zio Dee Pro Fac Was Fac Low Low Dat Pro Fac Upp Upp War Pro Fac Upp Upp Zhi Pro Res Qua Sec Res Tes Acc Com Damage Taken 16025 | . 366 231 366 454 693 631 104 47 . 258 . 664 . 29 185 189 198 . 457 81 248 70 . . 174 . . 16 . 348 1559 1695 732 1174 5056 Core 1577 | . 33 70 72 70 59 114 27 . . 27 . 78 . . 19 60 . . 40 19 16 36 . . 21 . . . . 3 162 202 57 16 376 Absorbed by Shields 3482 | . . . . . . . . . . . . . . . . . . . . . . . . . . . . . . 122 993 854 . 371 1142 Core Remaining (%) 77 | 100 . . . 2 89 . . . . . 76 . . . . . . 81 . . . . 88 . . . . 98 . . 100 . 82 . 54 Volleys Fired 1250 | 5 38 5 59 39 99 48 4 8 . 92 7 22 33 15 63 30 . 1 32 8 30 102 13 35 5 2 . 34 1 8 107 21 24 38 222 Largest 3 | 2 2 2 1 2 3 3 1 3 . 2 1 2 3 3 1 1 . 1 3 1 1 1 1 1 1 1 . 1 1 1 2 2 2 2 2 Hottest 300 | 60 60 60 250 40 130 136 39 131 . 103 39 100 131 80 39 30 . . 94 30 81 . 30 30 . . . 90 30 38 183 200 200 200 300 Shots Fired 1535 | 10 74 6 59 70 149 70 4 12 . 94 7 29 41 18 63 30 . 1 42 8 30 102 13 35 5 2 . 34 1 8 109 27 30 41 311 Gun 1216 | 10 72 2 53 68 91 56 . 10 . 79 . 23 41 18 45 30 . 1 34 8 24 102 13 35 5 2 . 25 1 8 19 23 21 19 278 Cannon 175 | . . . 2 . 36 6 . 2 . 2 . . . . . . . . 8 . 6 . . . . . . 9 . . 79 . 6 1 18 Launcher 144 | . 2 4 4 2 22 8 4 . . 13 7 6 . . 18 . . . . . . . . . . . . . . . 11 4 3 21 15 Special . | . . . . . . . . . . . . . . . . . . . . . . . . . . . . . . . . . . . . Kinetic 852 | 5 36 1 53 68 91 56 . 10 . 18 . 2 39 18 45 30 . 1 34 8 24 102 13 35 5 2 . 25 1 8 9 8 2 11 92 Thermal 133 | 5 36 1 2 . 36 6 . 2 . 2 . . 2 . . . . . 8 . . . . . . . . 9 . . 19 . . 1 4 Explosive 69 | . 2 4 4 2 2 . 4 . . 4 7 . . . 18 . . . . . . . . . . . . . . . 2 4 . 7 9 Electromagnetic 176 | . . . . . 20 8 . . . 9 . 21 . . . . . . . . 6 . . . . . . . . . 69 . 9 14 20 Slashing 238 | . . . . . . . . . . . . . . . . . . . . . . . . . . . . . . . 10 15 19 8 186 Phasic 67 | . . . . . . . . . . 61 . 6 . . . . . . . . . . . . . . . . . . . . . . . Robot Hit Streak 39 | 2 8 7 11 9 9 15 . 7 . 4 . 6 5 6 11 16 . . 7 2 4 25 1 7 2 . . 8 1 5 12 4 4 10 39 Robot Miss Streak 8 | 2 2 . 3 3 4 8 . 5 . 6 . 1 2 3 3 1 . . 5 2 1 1 2 4 1 . . 3 . 2 7 5 2 5 2 Penetration Max 3 | . . . 1 2 1 1 . . . . . . 1 . 1 . . . . . 2 1 . 1 3 . . 1 . . 1 3 1 2 1 Secondary Targets 1 | . . . . 1 . . . . . . . . . . . . . . . . . . . . . . . . . . . . . . . Max Gunslinging Chain 1 | . . . . 1 . . . . . . . . . . . . . . . . . . . . . . . . . . . . . . . Shots Hit Robots 1115 | 5 49 15 59 48 63 49 . 7 . 16 . 23 24 13 21 16 1 . 43 3 12 83 1 13 4 . 6 11 1 48 113 24 26 45 273 Core Hits 838 | 2 21 10 28 29 54 27 7 4 . 24 18 19 7 4 38 9 1 . 22 1 3 24 1 8 3 . 2 9 1 12 85 29 23 97 216 Critical Hits 169 | . . . 17 5 15 8 . 1 . . . 2 11 1 6 2 . . 11 . . 16 3 6 . . 2 6 1 7 20 6 2 4 17 Critical Kills 66 | . . . 5 2 5 3 . . . . . 2 2 1 4 2 . . 7 . . 4 1 2 . . . 3 1 5 8 4 . 3 2 Critical Parts Destroyed 80 | . . . 11 3 8 5 . 1 . . . . 2 . 2 . . . 4 . . 12 . 2 . . 2 2 . 2 9 1 2 1 11 Melee Attacks 429 | . 6 13 21 2 1 . . . 18 3 . 9 . 3 5 10 1 . 30 2 . . . 1 . . 7 9 3 77 108 11 18 37 34 Impact 20 | . 6 13 1 . . . . . . . . . . . . . . . . . . . . . . . . . . . . . . . . Slashing 334 | . . . 16 2 1 . . . 18 3 . . . . . . . . 4 . . . . . . . 3 2 1 76 108 11 18 37 34 Piercing 71 | . . . . . . . . . . . . 9 . 3 5 10 1 . 26 2 . . . 1 . . 4 7 2 1 . . . . . Sneak Attacks 27 | . . . 4 1 . . . . . 2 . 1 . . 1 . 1 . 1 . . . . . . . . . . 2 2 4 . 2 6 Combat Hostiles 6 | . . . . . . . . . . . . . . . 1 . . . . . . . . . . . . . . . 1 3 . . 1 Follow-up Attacks 7 | . . . 1 . . . . . . . . . . . . . . . 3 . . . . . . . 2 1 . . . . . . . Damage Inflicted 72809 | 73 763 471 1574 995 2542 1359 344 137 . 1458 747 1263 491 377 2588 785 89 . 1377 188 800 4175 38 489 538 . 952 345 11 3980 12240 3321 1834 7168 19297 Guns 25188 | 73 587 11 655 509 963 674 . 75 . 344 . 317 491 377 678 785 . . 564 188 655 4175 38 489 538 . . 240 11 . 347 1169 518 619 9098 Cannons 3455 | . . . . . 383 147 . 62 . . . . . . . . . . . . 145 . . . . . . . . . 1404 . 379 . 935 Explosions 19637 | . 176 264 224 286 1196 538 344 . . 697 747 749 . . 1759 . . . . . . . . . . . . . . . 1443 914 306 4021 5973 Melee 24529 | . . 196 695 200 . . . . . 417 . 197 . . 151 . 89 . 813 . . . . . . . 952 105 . 3980 9046 1238 631 2528 3291 Ramming . | . . . . . . . . . . . . . . . . . . . . . . . . . . . . . . . . . . . . Kinetic 18072 | 39 296 . 655 509 963 674 . 75 . 344 . 25 491 377 678 785 . . 564 188 655 4175 38 489 538 . . 240 11 . 255 653 . 440 3915 Thermal 2956 | 34 291 11 . . 538 333 . 62 . 60 . 84 . . . . . . . . . . . . . . . . . . 129 . . 405 1009 Explosive 12437 | . 176 264 224 286 177 . 344 . . 375 747 . . . 1759 . . . . . . . . . . . . . . . 378 914 . 2386 4407 Electromagnetic 8261 | . . . . . 864 352 . . . 262 . 891 . . . . . . . . 145 . . . . . . . . . 2340 . 685 1230 1492 Impact 212 | . . 196 16 . . . . . . . . . . . . . . . . . . . . . . . . . . . . . . . . Slashing 28977 | . . . 679 200 . . . . . 417 . . . . . . . . 152 . . . . . . . 287 40 . 3980 9138 1754 1149 2707 8474 Piercing 1828 | . . . . . . . . . . . . 197 . . 151 . 89 . 661 . . . . . . . 665 65 . . . . . . . Phasic 66 | . . . . . . . . . . . . 66 . . . . . . . . . . . . . . . . . . . . . . . Highest Corruption 7 | . . . . . . 1 1 1 1 . . . . . . . . . 3 3 3 . . . . . . . . 3 3 . . 2 7 Average Corruption 2 | . . . . . . 1 1 1 1 . . . . . . . . . 1 3 2 . . . . . . . . 2 1 . . 1 3 Corruption Purged 7 | . . . . . . . . . . . . . . . . . . . . . 3 . . . . . . . . . 4 . . . . Effects 78 | . . . . . . 3 1 . . . . . . . . . . . 7 5 3 . . . . . . . . 7 10 . . . 42 Message Errors 14 | . . . . . . . . . . . . . . . . . . . 1 . 1 . . . . . . . . 2 3 . . . 7 Matter Fused 10 | . . . . . . . . . . . . . . . . . . . 1 1 2 . . . . . . . . . . . . . 6 Heat Flow Errors 6 | . . . . . . . . . . . . . . . . . . . 1 2 . . . . . . . . . . . . . . 3 Energy Discharges 15 | . . . . . . . 1 . . . . . . . . . . . 1 1 . . . . . . . . . 3 3 . . . 6 Data Loss (minor) 10 | . . . . . . . . . . . . . . . . . . . 3 1 . . . . . . . . . . 1 . . . 5 Targeting Errors 20 | . . . . . . 3 . . . . . . . . . . . . . . . . . . . . . . . 2 3 . . . 12 Weapon Failures 3 | . . . . . . . . . . . . . . . . . . . . . . . . . . . . . . . . . . . 3 Overload Shots . | . . . . . . . . . . . . . . . . . . . . . . . . . . . . . . . . . . . . Overflow Damage 4153 | . 3 9 2 18 35 41 . . . 151 . 31 . . 101 . . . 40 . 1 . . . . . 156 9 . 456 996 249 42 600 1213 Projectiles 145 | . . . . . . 10 . . . . . . . . . . . . . . 1 . . . . . . . . . 23 . 29 . 82 Explosions 607 | . 3 . 1 18 35 31 . . . 18 . 2 . . 72 . . . . . . . . . . . . . . . 14 50 . 248 115 Melee 3401 | . . 9 1 . . . . . . 133 . 29 . . 29 . . . 40 . . . . . . . 156 9 . 456 959 199 13 352 1016 Knockbacks . | . . . . . . . . . . . . . . . . . . . . . . . . . . . . . . . . . . . . Impact . | . . . . . . . . . . . . . . . . . . . . . . . . . . . . . . . . . . . . Kinetic . | . . . . . . . . . . . . . . . . . . . . . . . . . . . . . . . . . . . . Secondary . | . . . . . . . . . . . . . . . . . . . . . . . . . . . . . . . . . . . . Self-Inflicted Damage 321 | . 31 29 . 55 29 104 . . . . . . . . . . . . . . . . . . . . . . . . 13 21 23 10 6 Shots 19 | . 1 2 . 2 1 2 . . . . . . . . . . . . . . . . . . . . . . . . 1 1 4 2 3 Rammed . | . . . . . . . . . . . . . . . . . . . . . . . . . . . . . . . . . . . . Targets Rammed . | . . . . . . . . . . . . . . . . . . . . . . . . . . . . . . . . . . . . Kicked . | . . . . . . . . . . . . . . . . . . . . . . . . . . . . . . . . . . . . Crushed . | . . . . . . . . . . . . . . . . . . . . . . . . . . . . . . . . . . . . Highest Temperature 432 | . 48 1 432 12 394 279 38 162 . 252 24 317 126 12 8 . 50 1 163 125 192 34 . . . . . . . . . . . . 198 Average Temperature 81 | . 25 1 217 5 99 117 17 79 . 85 11 108 49 7 5 . 20 1 76 54 93 15 . . . . . . . . . . . . 66 Received Heat Transfer 1975 | . 150 96 . 110 207 153 . . . 81 . 204 . . 27 . 36 . 36 . 18 . . . 48 . . 9 . 4 127 37 45 77 510 Effects 7 | . . . 2 . 3 . . . . . . 2 . . . . . . . . . . . . . . . . . . . . . . . Shutdowns 2 | . . . 1 . 1 . . . . . . . . . . . . . . . . . . . . . . . . . . . . . . Energy Bleed 1 | . . . . . 1 . . . . . . . . . . . . . . . . . . . . . . . . . . . . . . Interference 2 | . . . . . . . . . . . . 2 . . . . . . . . . . . . . . . . . . . . . . . Damage (minor) 2 | . . . 1 . 1 . . . . . . . . . . . . . . . . . . . . . . . . . . . . . . Siege Activations . | . . . . . . . . . . . . . . . . . . . . . . . . . . . . . . . . . . . . Robots Corrupted 37 | . . . . . 3 1 . . . . . 4 . . . . . . . . 1 . . . . . . . . . 12 . 5 4 7 Combat Hostiles 37 | . . . . . 3 1 . . . . . 4 . . . . . . . . 1 . . . . . . . . . 12 . 5 4 7 Parts Fried 79 | . . 1 . . 2 2 . . . 1 . 6 . . . . . . . . 3 . . . . . . . . . 32 . 9 12 11 Impact Corruptions 1 | . . 1 . . . . . . . . . . . . . . . . . . . . . . . . . . . . . . . . . Robots Melted . | . . . . . . . . . . . . . . . . . . . . . . . . . . . . . . . . . . . . Combat Hostiles . | . . . . . . . . . . . . . . . . . . . . . . . . . . . . . . . . . . . . Parts Melted 9 | . . . . . 2 2 . 2 . . . . . . . 2 . . . . . . . . . . . . . . . . . . 1 Heat Transferred 3299 | 75 675 25 . . 1000 450 . 74 . 100 . 100 . . . . . . . . . . . . . . . . . . 150 . . 350 300 Parts Sabotaged 1 | . . . . . . . . . . . . . . . . . . . . . . . . . . . . . . . . . . . 1 Parts Stolen . | . . . . . . . . . . . . . . . . . . . . . . . . . . . . . . . . . . . . Parts Stripped . | . . . . . . . . . . . . . . . . . . . . . . . . . . . . . . . . . . . . Power Chain Reactions 16 | . . . . . 4 1 . . . 1 . 3 . . . . . . . . . . . . . . . . . . 1 . . 5 1 Missiles Intercepted . | . . . . . . . . . . . . . . . . . . . . . . . . . . . . . . . . . . . . Alert | -11 -10 -10 -10 -9 -8 -7 -7 -7 -7 -7 -6 -6 -6 -6 -6 -6 -6 -5 -5 -5 -5 -5 -4 -4 -4 -4 -4 -3 -3 -3 -3 -2 -2 -1 -1 ------- Run | Scr Mat Min Exi Min Mat Fac Low Low Zio Dee Pro Fac Was Fac Low Low Dat Pro Fac Upp Upp War Pro Fac Upp Upp Zhi Pro Res Qua Sec Res Tes Acc Com Peak Influence 2656 | 5 239 151 . 235 536 611 . . . . . 519 181 249 . . . . 170 . . . . 215 . . . . 102 311 889 1177 884 1788 2656 Initial 1144 | . 3 1 . . 76 205 . . . . . 58 181 126 . . . . . . . . . 12 . . . . 70 57 105 483 667 475 1144 Average 401 | 1 74 89 . 112 298 261 . . . . . 186 181 138 . . . . 73 . . . . 118 . . . . 78 159 456 965 762 1118 1578 Maximum Alert Level 5 | . 1 . . 1 2 2 . . . . . 2 . 1 . . . . . . . . . 1 . . . . . 1 3 4 3 5 5 Low Security (%) 51 | 100 86 100 . 94 28 31 . . . . . 60 100 68 . . . . 100 . . . . 59 . . . . 100 79 17 . . . 47 Level 1 16 | . 13 . . 5 37 41 . . . . . 31 . 31 . . . . . . . . . 40 . . . . . 20 19 . . . . Level 2 14 | . . . . . 33 26 . . . . . 7 . . . . . . . . . . . . . . . . . . 46 10 17 15 . Level 3 8 | . . . . . . . . . . . . . . . . . . . . . . . . . . . . . . . 16 65 82 31 . Level 4 5 | . . . . . . . . . . . . . . . . . . . . . . . . . . . . . . . . 23 . 40 21 Level 5 1 | . . . . . . . . . . . . . . . . . . . . . . . . . . . . . . . . . . 12 2 High Security 3 | . . . . . . . . . . . . . . . . . . . . . . . . . . . . . . . . . . . 27 Max Security . | . . . . . . . . . . . . . . . . . . . . . . . . . . . . . . . . . . . . Squads Dispatched 69 | . 3 . . . 6 2 . . . . . 6 . . . . . . 4 . 1 . . 1 . . . . . 6 8 2 7 7 16 Investigation 15 | . 1 . . . . 1 . . . . . 4 . . . . . . . . . . . . . . . . . 2 . 2 1 3 1 Extermination 12 | . . . . . . 1 . . . . . . . . . . . . 2 . . . . . . . . . . 3 3 . 1 1 1 Reinforcement 16 | . 2 . . . 2 . . . . . . 2 . . . . . . 2 . . . . 1 . . . . . 1 2 . 3 1 . Assault 22 | . . . . . 1 . . . . . . . . . . . . . . . 1 . . . . . . . . . 3 . 1 2 14 Garrison 4 | . . . . . 3 . . . . . . . . . . . . . . . . . . . . . . . . . . . 1 . . Intercept . | . . . . . . . . . . . . . . . . . . . . . . . . . . . . . . . . . . . . Construction Impeded 6 | . . . . . 1 . . . . . . 1 . . . . . . . . . . . 1 . . . . . . 1 . 1 1 . Haulers Reinforced 2 | . . . . . . . . . . . . 1 . . . . . . 1 . . . . . . . . . . . . . . . . Stealth | -11 -10 -10 -10 -9 -8 -7 -7 -7 -7 -7 -6 -6 -6 -6 -6 -6 -6 -5 -5 -5 -5 -5 -4 -4 -4 -4 -4 -3 -3 -3 -3 -2 -2 -1 -1 --------- Run | Scr Mat Min Exi Min Mat Fac Low Low Zio Dee Pro Fac Was Fac Low Low Dat Pro Fac Upp Upp War Pro Fac Upp Upp Zhi Pro Res Qua Sec Res Tes Acc Com Distress Signals 29 | . 4 . . . . . . . . . . 4 . . . . . . . . . . . 2 . . . . . 1 4 1 2 2 9 Communications Jammed . | . . . . . . . . . . . . . . . . . . . . . . . . . . . . . . . . . . . . Distress Signals . | . . . . . . . . . . . . . . . . . . . . . . . . . . . . . . . . . . . . Times Spotted 589 | . 15 9 16 18 42 13 2 5 . 12 3 31 . 1 16 4 4 . 13 1 13 50 . 5 3 . . 2 . 23 67 42 24 46 109 Peak Tracking Total 22 | . 6 3 9 4 6 4 3 4 . 6 3 15 . 1 10 7 4 . 4 1 6 11 1 2 3 . . 3 . 5 7 16 9 9 22 Tactical Retreats 61 | . 1 1 2 1 3 . . . . . . 5 . . 5 1 . . 3 . 4 . . . . . . 1 . 1 15 4 1 10 3 Traps | -11 -10 -10 -10 -9 -8 -7 -7 -7 -7 -7 -6 -6 -6 -6 -6 -6 -6 -5 -5 -5 -5 -5 -4 -4 -4 -4 -4 -3 -3 -3 -3 -2 -2 -1 -1 ------- Run | Scr Mat Min Exi Min Mat Fac Low Low Zio Dee Pro Fac Was Fac Low Low Dat Pro Fac Upp Upp War Pro Fac Upp Upp Zhi Pro Res Qua Sec Res Tes Acc Com Traps Triggered 13 | . . . . . 2 . . . . . . 1 . . . . . . . . . . . . . . . . . 2 4 2 . 2 . Indirectly . | . . . . . . . . . . . . . . . . . . . . . . . . . . . . . . . . . . . . Trap Hack Attempts . | . . . . . . . . . . . . . . . . . . . . . . . . . . . . . . . . . . . . Triggered . | . . . . . . . . . . . . . . . . . . . . . . . . . . . . . . . . . . . . Disarmed 6 | . . . . . . 6 . . . . . . . . . . . . . . . . . . . . . . . . . . . . . Reprogrammed . | . . . . . . . . . . . . . . . . . . . . . . . . . . . . . . . . . . . . Reused 1 | . . . . . . . . . . . . . . . . . . . . . 1 . . . . . . . . . . . . . . Traps Extracted . | . . . . . . . . . . . . . . . . . . . . . . . . . . . . . . . . . . . . Installed 5 | . . . . . . . . . . . . . . . . . . . . . 5 . . . . . . . . . . . . . . Triggered 14 | . . . . . . . . 1 . . . . . . . . . . . . 1 7 . . . . . . . . . . . . 5 Exploded 3 | . . . 3 . . . . . . . . . . . . . . . . . . . . . . . . . . . . . . . . Machines | -11 -10 -10 -10 -9 -8 -7 -7 -7 -7 -7 -6 -6 -6 -6 -6 -6 -6 -5 -5 -5 -5 -5 -4 -4 -4 -4 -4 -3 -3 -3 -3 -2 -2 -1 -1 ---------- Run | Scr Mat Min Exi Min Mat Fac Low Low Zio Dee Pro Fac Was Fac Low Low Dat Pro Fac Upp Upp War Pro Fac Upp Upp Zhi Pro Res Qua Sec Res Tes Acc Com Machines Disabled 71 | . . 1 10 1 8 2 . . . 3 . . . . 7 . . . . . . 1 . 5 . . . . . 4 13 1 8 2 5 Max in Single Turn 4 | . . 1 2 1 2 1 . . . 1 . . . . 4 . . . . . . 1 . 2 . . . . . 1 1 1 1 1 1 Garrison Access 8 | . . . . . 1 1 . . . . . . . 1 . . . . 2 . . . . . . . . . . 1 1 . 1 . . Phase Generator 1 | . . . . . . . . . . . . . . . . . . . . . . . . . . . . . . . . . . . 1 Machines Sabotaged . | . . . . . . . . . . . . . . . . . . . . . . . . . . . . . . . . . . . . Garrisons Compromised . | . . . . . . . . . . . . . . . . . . . . . . . . . . . . . . . . . . . . Overloaded Fab Kills . | . . . . . . . . . . . . . . . . . . . . . . . . . . . . . . . . . . . . Fab Network Shutdowns 1 | . . . . . . 1 . . . . . . . . . . . . . . . . . . . . . . . . . . . . . Hacking | -11 -10 -10 -10 -9 -8 -7 -7 -7 -7 -7 -6 -6 -6 -6 -6 -6 -6 -5 -5 -5 -5 -5 -4 -4 -4 -4 -4 -3 -3 -3 -3 -2 -2 -1 -1 --------- Run | Scr Mat Min Exi Min Mat Fac Low Low Zio Dee Pro Fac Was Fac Low Low Dat Pro Fac Upp Upp War Pro Fac Upp Upp Zhi Pro Res Qua Sec Res Tes Acc Com Machines Accessed 136 | . 7 . 3 . 11 8 . . . . . 11 . 8 2 . 4 . 11 . 1 1 . 4 2 2 5 . 2 13 20 1 8 6 6 Terminals 87 | . 4 . . . 7 4 . . . . . 8 . 5 1 . . . 8 . . . . 3 . . . . 1 10 17 1 6 6 6 Fabricators 10 | . . . . . . 3 . . . . . 3 . 2 . . . . . . . . . 1 . . . . . . . . 1 . . Repair Stations 2 | . 1 . . . 1 . . . . . . . . . . . . . . . . . . . . . . . . . . . . . . Recycling Units 3 | . 2 . . . . . . . . . . . . . . . . . . . . . . . . . . . 1 . . . . . . Scanalyzers 7 | . . . . . 2 . . . . . . . . . . . . . 1 . . . . . . . . . . 2 2 . . . . Garrison Access 8 | . . . . . 1 1 . . . . . . . 1 . . . . 2 . . . . . . . . . . 1 1 . 1 . . Total Hacks 428 | . 18 . 4 . 43 31 . . . . . 26 . 22 4 . 24 . 51 . 1 1 . 21 9 10 18 . 9 34 42 5 19 15 21 Successful 253 | . 6 . 4 . 26 19 . . . . . 14 . 16 4 . 24 . 28 . 1 1 . 10 9 10 18 . 3 17 19 . 8 6 10 Failed 174 | . 12 . . . 17 12 . . . . . 12 . 6 . . . . 22 . . . . 11 . . . . 6 17 23 5 11 9 11 Catastrophic 38 | . . . . . 4 2 . . . . . 3 . 1 . . . . 4 . . . . 5 . . . . 1 3 8 1 4 . 2 Database Lockouts 1 | . . . . . . . . . . . . . . . . . . . 1 . . . . . . . . . . . . . . . . Manual 191 | . 15 . 1 . 18 17 . . 2 . . 17 . 9 . . . . 30 . . 1 . 4 . . . . 7 15 18 5 11 5 16 Terminals 274 | . 15 . . . 28 19 . . . . . 18 . 14 3 . . . 45 . . . . 11 . . . . 7 26 34 5 13 15 21 Fabricators 39 | . . . . . . 11 . . . . . 8 . 5 . . . . . . . . . 10 . . . . . . . . 5 . . Repair Stations 3 | . 1 . . . 2 . . . . . . . . . . . . . . . . . . . . . . . . . . . . . . Recycling Units 4 | . 2 . . . . . . . . . . . . . . . . . . . . . . . . . . . 2 . . . . . . Scanalyzers 24 | . . . . . 10 . . . . . . . . . . . . . 3 . . . . . . . . . . 6 5 . . . . Garrison Access 16 | . . . . . 3 1 . . . . . . . 3 . . . . 3 . . . . . . . . . . 2 3 . 1 . . Terminal Hacks 154 | . 3 . 4 . 9 8 . . . . . 4 . 7 4 . 24 . 17 . 1 1 . 2 9 10 18 . . 8 13 . 3 4 5 Record 43 | . . . 3 . . . . . . . . . . . 3 . 11 . . . . . . . 8 9 6 . . 1 1 . 1 . . Part Schematic 16 | . . . . . . 1 . . . . . 1 . . . . 6 . 3 . . . . . . . 4 . . 1 . . . . . Robot Schematic 5 | . . . . . . . . . . . . 1 . . . . 4 . . . . . . . . . . . . . . . . . . Robot Analysis 11 | . 1 . . . . 2 . . . . . . . . . . . . 1 . . . . . . . 4 . . 2 . . . . 1 Prototype ID Bank 9 | . . . . . . . . . . . . . . 1 . . 3 . 1 . . . . . . . 4 . . . . . . . . Open Door 14 | . . . . . . . . . . . . . . . 1 . . . . . 1 1 . . 1 1 . . . 1 5 . . 3 . Branch Access Points 7 | . . . . . 1 1 . . . . . 1 . . . . . . 2 . . . . 1 . . . . . . . . . 1 . Machine Index 3 | . . . . . . 1 . . . . . . . . . . . . 1 . . . . . . . . . . . . . . . 1 Terminal Index 3 | . . . . . 1 . . . . . . . . 1 . . . . . . . . . . . . . . . . 1 . . . . Fabricator Index 1 | . . . . . . . . . . . . . . 1 . . . . . . . . . . . . . . . . . . . . . Scanalyzer Index 2 | . . . . . 1 . . . . . . . . . . . . . . . . . . . . . . . . 1 . . . . . Alert Level 7 | . . . . . 2 . . . . . . . . 1 . . . . . . . . . 1 . . . . . 1 1 . . . 1 Unreport Threat 9 | . 1 . . . 2 1 . . . . . . . . . . . . 1 . . . . . . . . . . . 3 . 1 . . Locate Traps 4 | . . . . . . 1 . . . . . . . 1 . . . . 2 . . . . . . . . . . . . . . . . Disarm Traps 1 | . . . . . . 1 . . . . . . . . . . . . . . . . . . . . . . . . . . . . . Recall Investigation 1 | . . . . . . . . . . . . . . . . . . . . . . . . . . . . . . . . . 1 . . Recall Extermination 1 | . . . . . . . . . . . . . . . . . . . . . . . . . . . . . . 1 . . . . . Recall Reinforcements 1 | . . . . . . . . . . . . . . . . . . . 1 . . . . . . . . . . . . . . . . Hauler Manifests 2 | . 1 . . . . . . . . . . 1 . . . . . . . . . . . . . . . . . . . . . . . Registered Prototypes 1 | . . . . . . . . . . . . . . . . . . . 1 . . . . . . . . . . . . . . . . Zone Layout 11 | . . . . . 2 . . . . . . . . 2 . . . . 4 . . . . . . . . . . . 2 . . . 1 EX-Prototype ID Bank 1 | . . . 1 . . . . . . . . . . . . . . . . . . . . . . . . . . . . . . . . Disengage Seal 1 | . . . . . . . . . . . . . . . . . . . . . . . . . . . . . . . . . . . 1 Fabricator Hacks 20 | . . . . . . 5 . . . . . 5 . 3 . . . . . . . . . 5 . . . . . . . . 2 . . Network Status 2 | . . . . . . . . . . . . 1 . . . . . . . . . . . 1 . . . . . . . . . . . Load Schematic 9 | . . . . . . 3 . . . . . 2 . 1 . . . . . . . . . 2 . . . . . . . . 1 . . Build 9 | . . . . . . 2 . . . . . 2 . 2 . . . . . . . . . 2 . . . . . . . . 1 . . Repair Station Hacks 2 | . . . . . 2 . . . . . . . . . . . . . . . . . . . . . . . . . . . . . . Scan Component 1 | . . . . . 1 . . . . . . . . . . . . . . . . . . . . . . . . . . . . . . Repair 1 | . . . . . 1 . . . . . . . . . . . . . . . . . . . . . . . . . . . . . . Recycling Unit Hacks 2 | . 1 . . . . . . . . . . . . . . . . . . . . . . . . . . . 1 . . . . . . Retrieve Components 2 | . 1 . . . . . . . . . . . . . . . . . . . . . . . . . . . 1 . . . . . . Scanalyzer 17 | . . . . . 10 . . . . . . . . . . . . . 3 . . . . . . . . . . 4 . . . . . Insert Component 11 | . . . . . 5 . . . . . . . . . . . . . 2 . . . . . . . . . . 4 . . . . . Analyze 6 | . . . . . 5 . . . . . . . . . . . . . 1 . . . . . . . . . . . . . . . . Garrison Access Hacks 8 | . . . . . 1 1 . . . . . . . 1 . . . . 2 . . . . . . . . . . 1 1 . 1 . . Seal Access 8 | . . . . . 1 1 . . . . . . . 1 . . . . 2 . . . . . . . . . . 1 1 . 1 . . Unauthorized Hacks 50 | . 2 . . . 4 5 . . . . . 5 . 5 . . . . 6 . . . . 3 . . . . 2 4 5 . 2 2 5 Terminals 43 | . 1 . . . 4 4 . . . . . 4 . 4 . . . . 6 . . . . . . . . . 2 4 5 . 2 2 5 Track 8 | . 1 . . . 1 1 . . . . . . . . . . . . 2 . . . . . . . . . . . 1 . 1 . 1 Assimilate 9 | . . . . . . . . . . . . 2 . . . . . . 1 . . . . . . . . . . 3 2 . . . 1 Botnet 21 | . . . . . 2 2 . . . . . 2 . 4 . . . . 2 . . . . . . . . . 1 1 2 . 1 1 3 Disrupt 1 | . . . . . . 1 . . . . . . . . . . . . . . . . . . . . . . . . . . . . . Operators 4 | . . . . . 1 . . . . . . . . . . . . . 1 . . . . . . . . . 1 . . . . 1 . Fabricators 6 | . . . . . . 1 . . . . . 1 . 1 . . . . . . . . . 3 . . . . . . . . . . . Report 4 | . . . . . . 1 . . . . . 1 . 1 . . . . . . . . . 1 . . . . . . . . . . . Prioritize 1 | . . . . . . . . . . . . . . . . . . . . . . . . 1 . . . . . . . . . . . Siphon 1 | . . . . . . . . . . . . . . . . . . . . . . . . 1 . . . . . . . . . . . Repair Stations . | . . . . . . . . . . . . . . . . . . . . . . . . . . . . . . . . . . . . Recycling Units 1 | . 1 . . . . . . . . . . . . . . . . . . . . . . . . . . . . . . . . . . Tunnel 1 | . 1 . . . . . . . . . . . . . . . . . . . . . . . . . . . . . . . . . . Scanalyzers . | . . . . . . . . . . . . . . . . . . . . . . . . . . . . . . . . . . . . Garrison Access . | . . . . . . . . . . . . . . . . . . . . . . . . . . . . . . . . . . . . Data Cores Recovered . | . . . . . . . . . . . . . . . . . . . . . . . . . . . . . . . . . . . . Used . | . . . . . . . . . . . . . . . . . . . . . . . . . . . . . . . . . . . . Hacking Detections 96 | . 6 . . . 9 7 . . . . . 10 . 6 1 . . . 8 . . . . 4 . . . . 2 10 15 1 7 4 6 Full Trace Events 14 | . . . . . . 1 . . . . . 4 . . 1 . . . . . . . . . . . . . . 2 . 1 1 3 1 Feedback Events 2 | . . . . . . . . . . . . . . . . . . . . . . . . . . . . . . . . . . 2 . Corruption 1 | . . . . . . . . . . . . . . . . . . . . . . . . . . . . . . . . . . 1 . Hackware Fried 1 | . . . . . . . . . . . . . . . . . . . . . . . . . . . . . . . . . . 1 . Feedback Blocked . | . . . . . . . . . . . . . . . . . . . . . . . . . . . . . . . . . . . . Robot Schematics Acquired 5 | . . . . . . . . . . . . 1 . . . . 4 . . . . . . . . . . . . . . . . . . Robots Built 16 | . . . . . . . . . . . . 4 . 8 . . . . . . . . . 4 . . . . . . . . . . . Matter 1197 | . . . . . . . . . . . . 504 . 504 . . . . . . . . . 189 . . . . . . . . . . . Time 312 | . . . . . . . . . . . . 111 . 134 . . . . . . . . . 67 . . . . . . . . . . . Total Robot Build Rating 64 | . . . . . . . . . . . . 16 . 32 . . . . . . . . . 16 . . . . . . . . . . . Part Schematics Acquired 21 | . . . . . 4 1 . . . . . 1 . . . . 6 . 4 . . . . . . . 4 . . 1 . . . . . Parts Built 7 | . . . . . . 4 . . . . . . . . . . . . . . . . . 1 . . . . . . . . 2 . . Matter 1108 | . . . . . . 512 . . . . . . . . . . . . . . . . . 318 . . . . . . . . 278 . . Time 366 | . . . . . . 128 . . . . . . . . . . . . . . . . . 169 . . . . . . . . 69 . . Total Part Build Rating 56 | . . . . . . 32 . . . . . . . . . . . . . . . . . 6 . . . . . . . . 18 . . Parts Repaired 1 | . . . . . 1 . . . . . . . . . . . . . . . . . . . . . . . . . . . . . . Time 49 | . . . . . 49 . . . . . . . . . . . . . . . . . . . . . . . . . . . . . . Parts Recycled . | . . . . . . . . . . . . . . . . . . . . . . . . . . . . . . . . . . . . Recycled Matter . | . . . . . . . . . . . . . . . . . . . . . . . . . . . . . . . . . . . . Retrieved Matter . | . . . . . . . . . . . . . . . . . . . . . . . . . . . . . . . . . . . . Retrieved Components 12 | . 9 . . . . . . . . . . . . . . . . . . . . . . . . . . . 3 . . . . . . Parts Scanalyzed 5 | . . . . . 4 . . . . . . . . . . . . . 1 . . . . . . . . . . . . . . . . Part Schematics Acquired 5 | . . . . . 4 . . . . . . . . . . . . . 1 . . . . . . . . . . . . . . . . Parts Damaged . | . . . . . . . . . . . . . . . . . . . . . . . . . . . . . . . . . . . . Bothacking | -11 -10 -10 -10 -9 -8 -7 -7 -7 -7 -7 -6 -6 -6 -6 -6 -6 -6 -5 -5 -5 -5 -5 -4 -4 -4 -4 -4 -3 -3 -3 -3 -2 -2 -1 -1 ------------ Run | Scr Mat Min Exi Min Mat Fac Low Low Zio Dee Pro Fac Was Fac Low Low Dat Pro Fac Upp Upp War Pro Fac Upp Upp Zhi Pro Res Qua Sec Res Tes Acc Com Used RIF Installer . | . . . . . . . . . . . . . . . . . . . . . . . . . . . . . . . . . . . . Robots Hacked 4 | . . . 4 . . . . . . . . . . . . . . . . . . . . . . . . . . . . . . . . Non-combat 3 | . . . 3 . . . . . . . . . . . . . . . . . . . . . . . . . . . . . . . . Combat 1 | . . . 1 . . . . . . . . . . . . . . . . . . . . . . . . . . . . . . . . Robot Hacks Applied 4 | . . . 4 . . . . . . . . . . . . . . . . . . . . . . . . . . . . . . . . parse_system 4 | . . . 4 . . . . . . . . . . . . . . . . . . . . . . . . . . . . . . . . Relay Couplers Released . | . . . . . . . . . . . . . . . . . . . . . . . . . . . . . . . . . . . . Robots Rewired 2 | . . . . . . . . . . . . . . . . 2 . . . . . . . . . . . . . . . . . . . Allies Hacked 1 | . . . . . . . . . . . . . . . . . . . . . . . . . . . . . . 1 . . . . . Hacks Repelled 1 | . . . . . . . . . . . . . . . . . . . . . . . . . . . . . . . 1 . . . . Allies | -11 -10 -10 -10 -9 -8 -7 -7 -7 -7 -7 -6 -6 -6 -6 -6 -6 -6 -5 -5 -5 -5 -5 -4 -4 -4 -4 -4 -3 -3 -3 -3 -2 -2 -1 -1 -------- Run | Scr Mat Min Exi Min Mat Fac Low Low Zio Dee Pro Fac Was Fac Low Low Dat Pro Fac Upp Upp War Pro Fac Upp Upp Zhi Pro Res Qua Sec Res Tes Acc Com Total Allies 39 | . . 3 . . . . . . 8 1 . 5 . 8 . 2 . . 1 . . . . 4 . 2 . . . 3 1 . . . 1 Largest Group 9 | . . 3 3 . . . . . 8 9 6 5 . 8 7 2 1 . 1 . . . . 4 4 3 2 . . 2 1 . . . 1 Highest-Rated Group 453 | . . 40 40 . . . . . 335 453 279 180 . 96 84 64 32 . 10 . . . . 48 48 88 76 . . 88 44 . . . 26 Highest-Rated Ally 118 | . . 16 16 . . . . . 94 118 94 94 . 12 12 32 32 . 10 . . . . 12 12 38 38 . . 44 44 . . . 26 Total Orders 31 | . . . 4 . . . . . . . . . . . 4 2 1 . 4 . . . . 6 . 2 . . . 5 1 . . . 2 STAY 19 | . . . 4 . . . . . . . . . . . 2 1 1 . 2 . . . . 3 . 1 . . . 3 1 . . . 1 FOLLOW 12 | . . . . . . . . . . . . . . . 2 1 . . 2 . . . . 3 . 1 . . . 2 . . . . 1 Ally Attacks 222 | . . . 4 . . . . . . 95 15 24 . 2 64 3 . . . . . . . . 14 1 . . . . . . . . . Total Damage 4079 | . . . 4 . . . . . . 2306 358 504 . 30 615 106 . . . . . . . . 156 . . . . . . . . . . Kills 27 | . . . . . . . . . . 14 3 5 . 1 2 . . . . . . . . . 2 . . . . . . . . . . Allies Corrupted . | . . . . . . . . . . . . . . . . . . . . . . . . . . . . . . . . . . . . Allies Melted . | . . . . . . . . . . . . . . . . . . . . . . . . . . . . . . . . . . . . Intel | -11 -10 -10 -10 -9 -8 -7 -7 -7 -7 -7 -6 -6 -6 -6 -6 -6 -6 -5 -5 -5 -5 -5 -4 -4 -4 -4 -4 -3 -3 -3 -3 -2 -2 -1 -1 ------- Run | Scr Mat Min Exi Min Mat Fac Low Low Zio Dee Pro Fac Was Fac Low Low Dat Pro Fac Upp Upp War Pro Fac Upp Upp Zhi Pro Res Qua Sec Res Tes Acc Com Robot Analysis Total 11 | . 1 . . . . 2 . . . . . . . . . . . . 1 . . . . . . . 4 . . 2 . . . . 1 Derelict Logs Recovered 18 | . . 1 . 1 . . 1 1 2 . 3 . . . 1 2 . 1 . . 1 . 2 . . 2 . . . . . . . . . Drone Launches . | . . . . . . . . . . . . . . . . . . . . . . . . . . . . . . . . . . . . Drone Recoveries . | . . . . . . . . . . . . . . . . . . . . . . . . . . . . . . . . . . . . Exploration | -11 -10 -10 -10 -9 -8 -7 -7 -7 -7 -7 -6 -6 -6 -6 -6 -6 -6 -5 -5 -5 -5 -5 -4 -4 -4 -4 -4 -3 -3 -3 -3 -2 -2 -1 -1 ------------- Run | Scr Mat Min Exi Min Mat Fac Low Low Zio Dee Pro Fac Was Fac Low Low Dat Pro Fac Upp Upp War Pro Fac Upp Upp Zhi Pro Res Qua Sec Res Tes Acc Com Turns Passed 25829 | 73 704 669 1299 745 1631 826 554 323 988 2076 796 637 349 722 1272 835 138 300 891 308 421 1008 357 536 144 266 217 399 75 1063 2031 278 551 741 1606 Spaces Moved 25712 | 40 506 517 816 495 816 598 744 383 1126 1820 946 691 348 699 1092 911 139 398 944 394 289 1136 430 484 241 330 401 413 122 1126 2475 534 641 986 1681 Core 1 | 1 . . . . . . . . . . . . . . . . . . . . . . . . . . . . . . . . . . . Treads 17 | 12 3 . 2 . . . . . . . . . . . . . . . . . . . . . . . . . . . . . . . . Legs 1957 | . . . 415 495 816 231 . . . . . . . . . . . . . . . . . . . . . . . . . . . . . Wheels 1446 | 27 503 517 399 . . . . . . . . . . . . . . . . . . . . . . . . . . . . . . . . Hover 22291 | . . . . . . 367 744 383 1126 1820 946 691 348 699 1092 911 139 398 944 394 289 1136 430 484 241 330 401 413 122 1126 2475 534 641 986 1681 Flight . | . . . . . . . . . . . . . . . . . . . . . . . . . . . . . . . . . . . . Fastest Speed 18 | 50 90 100 100 120 126 72 72 72 72 36 72 34 72 72 34 72 34 68 34 34 34 24 48 48 24 24 24 24 48 18 24 24 27 24 24 Average Speed 67 | 116 101 111 125 121 148 106 72 72 72 70 72 67 72 72 70 72 57 71 66 67 62 47 48 48 47 47 47 44 48 46 43 26 52 44 45 Slowest Speed 180 | 160 160 120 180 150 160 160 72 72 72 146 72 72 72 72 72 72 72 72 68 68 68 68 48 48 48 48 48 48 48 116 116 99 126 110 145 Overloaded Moves 11 | . . . . . . . . . . . . . . . . . . . . . . . . . . . . . . 11 . . . . . Propulsion Burnouts . | . . . . . . . . . . . . . . . . . . . . . . . . . . . . . . . . . . . . Robots Hopped 1 | . . . . . . . . . . . . . . . . . . . . . . 1 . . . . . . . . . . . . . Cave-ins Triggered 2 | . . . . . . . . . . . . . . . . . . . . . . . . . . . . . . . . 1 . 1 . Teleports 1 | . . . . . . . . . . . . . . . . . . . . . . . . . . . . . . . . . . . 1 Exploration Rate (%) 58 | 3 68 97 91 94 75 15 87 67 81 87 95 21 95 20 82 74 77 64 22 54 42 85 65 6 46 49 62 53 5 74 90 20 65 29 48 Regions Visited 35 Branch Regions 24 Pre-discovered Areas 14 | . 1 1 1 . . . . . 2 . 2 . . . . . 1 1 . . . . . . 1 1 3 . . . . . . . . Known Exits Taken 28 | . 1 . . . . 1 1 1 1 1 1 . . 1 1 1 1 1 1 1 1 1 1 1 1 1 1 1 1 1 1 1 1 1 . Unknown Exits Taken 5 | 1 . 1 1 1 1 . . . . . . . . . . . . . . . . . . . . . . . . . . . . . . Scrap Searched 44 | . . 2 . 1 . . 4 2 3 . . . . . 13 3 . 3 . 2 3 . 2 . 3 1 . 2 . . . . . . . Spaces Dug 380 | . 14 1 5 . 14 . . . 3 70 . 9 . 3 15 9 . 4 11 2 32 . 29 4 . 7 . 22 1 11 36 1 7 29 41 Terrain Destroyed 1385 | . 14 39 28 20 101 36 23 1 3 114 55 13 3 5 177 40 . 4 13 4 71 30 29 17 10 7 . 23 1 17 89 53 11 168 166 Melee 78 | . 4 1 . . 1 . . . 3 . . 5 . 3 2 6 . . 3 2 . . . 1 . . . 5 1 10 16 1 2 10 2 Projectile 617 | . . . 7 4 27 2 . 1 . 85 . 4 3 2 57 34 . 4 10 2 71 30 29 9 10 7 . 18 . 7 33 6 9 28 118 AOE 690 | . 10 38 21 16 73 34 23 . . 29 55 4 . . 118 . . . . . . . . 7 . . . . . . 40 46 . 130 46 Terrain Rammed . | . . . . . . . . . . . . . . . . . . . . . . . . . . . . . . . . . . . . Walls Destroyed . | . . . . . . . . . . . . . . . . . . . . . . . . . . . . . . . . . . . . Machines Disabled . | . . . . . . . . . . . . . . . . . . . . . . . . . . . . . . . . . . . . Actions | -11 -10 -10 -10 -9 -8 -7 -7 -7 -7 -7 -6 -6 -6 -6 -6 -6 -6 -5 -5 -5 -5 -5 -4 -4 -4 -4 -4 -3 -3 -3 -3 -2 -2 -1 -1 --------- Run | Scr Mat Min Exi Min Mat Fac Low Low Zio Dee Pro Fac Was Fac Low Low Dat Pro Fac Upp Upp War Pro Fac Upp Upp Zhi Pro Res Qua Sec Res Tes Acc Com Total 31814 | 53 613 584 1013 573 1105 721 756 418 1285 2500 1053 811 412 887 1494 1017 192 409 1118 416 468 1394 558 735 258 433 420 575 132 1507 3106 616 789 1159 2234 Wait 3160 | . 27 36 64 17 106 37 . 21 117 499 94 39 8 157 303 52 37 8 59 4 132 107 114 202 11 101 . 111 4 228 253 26 49 34 103 Move 25675 | 39 505 516 815 494 815 597 743 382 1125 1819 945 691 347 698 1091 910 138 397 943 393 288 1133 429 483 240 329 400 412 121 1125 2474 533 640 985 1680 Hop 1 | . . . . . . . . . . . . . . . . . . . . . . 1 . . . . . . . . . . . . . Pick Up 210 | 3 15 4 15 4 11 6 . 2 4 11 1 11 9 2 5 1 3 1 11 . . 7 . 2 . . 2 1 1 11 29 5 8 4 21 Fast Attach 186 | 6 2 . 7 3 8 3 1 . 5 20 2 4 3 . 2 2 . . 4 2 . 11 . . . . 6 1 1 9 24 1 16 6 37 Attach 126 | . 3 2 5 1 4 5 1 2 2 5 . 6 1 . 2 1 1 . 2 . . 1 . 2 1 . . . 1 7 26 5 4 3 33 Detach 79 | . . 1 4 . 2 3 1 . 2 6 . . 1 . 3 1 1 . . . . 2 . . . . . . . 6 10 2 1 3 30 Swap 361 | . 9 6 7 7 37 16 5 2 4 15 1 19 2 8 13 3 8 2 30 6 13 14 2 10 1 1 2 7 1 14 35 8 6 22 25 Drop 316 | . 8 1 17 6 22 6 1 1 8 29 3 10 8 4 7 1 3 . 11 1 . 16 . . . . 6 2 . 19 40 4 23 10 49 Fire 1250 | 5 38 5 59 39 99 48 4 8 . 92 7 22 33 15 63 30 . 1 32 8 30 102 13 35 5 2 . 34 1 8 107 21 24 38 222 Melee 418 | . 6 13 20 2 1 . . . 18 3 . 9 . 3 5 10 1 . 26 2 . . . 1 . . 4 7 2 77 108 11 18 37 34 Ram . | . . . . . . . . . . . . . . . . . . . . . . . . . . . . . . . . . . . . Kick . | . . . . . . . . . . . . . . . . . . . . . . . . . . . . . . . . . . . . Crush . | . . . . . . . . . . . . . . . . . . . . . . . . . . . . . . . . . . . . Escape Stasis 20 | . . . . . . . . . . . . . . . . . . . . . . . . . . . . . . 3 . . . 17 . Rewire 7 | . . . . . . . . . . 1 . . . . . 6 . . . . . . . . . . . . . . . . . . . Trap 5 | . . . . . . . . . . . . . . . . . . . . . 5 . . . . . . . . . . . . . . Miscellaneous . | . . . . . . . . . . . . . . . . . . . . . . . . . . . . . . . . . . . . Route ------- -11/Scrapyard -10/Materials (discovered 4 exits: *Mat x2 / *Min x2) -10/Mines (discovered 3 exits: *Mat x2 / *Exi) -10/Exiles -9/Mines (discovered 2 exits: *Mat x2) -8/Materials (discovered 5 exits: *Fac x3 / *Sto x2) -7/Factory (discovered 3 exits: *Fac / *Low x2) -7/Lower Caves -7/Lower Caves (discovered 2 exits: *Fac / *Zio) -7/Zion (discovered 2 exits: *Dee / [*Pro]) -7/Deep Caves -6/Proximity Caves -6/Factory (discovered 2 exits: *Low x2) -6/Waste -6/Factory (discovered 3 exits: *Fac x2 / *Low) -6/Lower Caves -6/Lower Caves (discovered 2 exits: *Fac / *Dat) -6/Data Miner -5/Proximity Caves -5/Factory (discovered 5 exits: *Fac / *Upp x2 / Ext x2) -5/Upper Caves -5/Upper Caves -5/Warlord -4/Proximity Caves -4/Factory (discovered 3 exits: *Upp x2 / Arm) -4/Upper Caves -4/Upper Caves (discovered 2 exits: Res / *Zhi) -4/Zhirov -3/Proximity Caves -3/Research (discovered 2 exits: Res / *Qua) -3/Quarantine (discovered 2 exits: Res / *Sec) -3/Section 7 -2/Research -2/Testing -1/Access -1/Command (discovered 2 exits: *Sur x2) To Epsilon Eridani History --------- Turn | Location | Event 52 | -11/Scrapyard | Discovered new exit (range 15) 74 | -11/Scrapyard | Entered Materials 154 | -10/Materials | Discovered new exit (range 15) 266 | -10/Materials | Lost 3 parts (1p1n1w) 315 | -10/Materials | Build established: Mutant 475 | -10/Materials | Discovered new exit (range 11) 537 | -10/Materials | Identified exit to Materials 580 | -10/Materials | Discovered new exit (range 12) 594 | -10/Materials | Identified exit to Mines 666 | -10/Materials | Discovered exit to Mines (range 14) 778 | -10/Materials | Entered Mines 805 | -10/Mines | Learned location of Storage (-8) 1134 | -10/Mines | Discovered exit to Materials (range 7) 1201 | -10/Mines | Discovered exit to Materials (range 14) 1406 | -10/Mines | Deemed a non-threat by the Exiles lab entrance 1407 | -10/Mines | Discovered new exit (range 5) 1427 | -10/Mines | Assisted by bots powering up and referring to "LRC-V3" 1447 | -10/Mines | Entered Exiles 1447 | -10/Exiles | Accompanied by 3 allies 1482 | -10/Exiles | Met 8R-AWN 1501 | -10/Exiles | Met EX-HEX 1533 | -10/Exiles | Met EX-BIN 1550 | -10/Exiles | Aligned with FarCom system 1552 | -10/Exiles | Given EX-Vault access code 1578 | -10/Exiles | Opened EX-Vault 1585 | -10/Exiles | Found Longsword +1 1606 | -10/Exiles | Warned to stay clear of 0b10 Research branches 1639 | -10/Exiles | Met EX-DEC 1646 | -10/Exiles | Learned location of Zion (-7) 1887 | -10/Exiles | Attacked by the Exiles 1996 | -10/Exiles | Core integrity fell below 50% 2022 | -10/Exiles | Destroyed 8R-AWN 2032 | -10/Exiles | Found 8R-AWN's Boregun 2051 | -10/Exiles | Lost 3 parts (1p1n1u) 2078 | -10/Exiles | Found 8R-AWN's Armor/EX 2173 | -10/Exiles | Destroyed EX-BIN 2187 | -10/Exiles | Found System Purifier 2229 | -10/Exiles | Destroyed EX-HEX 2282 | -10/Exiles | Destroyed EX-DEC 2566 | -10/Exiles | Found Firepult 2735 | -10/Exiles | Discovered new exit (range 10) 2746 | -10/Exiles | Left Exiles lab with Longsword +1 2746 | -10/Exiles | Entered Mines 2803 | -9/Mines | Learned 4 Materials zone layouts 2818 | -9/Mines | Found a damaged Exp. Sensor Array with a note attached 2821 | -9/Mines | Found Prototype Device 2882 | -9/Mines | Discovered new exit (range 8) 3091 | -9/Mines | Core integrity fell below 20% 3394 | -9/Mines | Excavation squad dispatched 3394 | -9/Mines | A large section of the Mines collapsed 3476 | -9/Mines | Discovered new exit (range 8) 3483 | -9/Mines | Received a Rocket Launcher from a helpful Derelict 3491 | -9/Mines | Entered Materials 3491 | -8/Materials | Evolved 4 slots: Propulsion x1, Utility x2, Weapon x1 3657 | -8/Materials | Discovered new exit (range 15) 3999 | -8/Materials | Discovered new exit (range 10) 4036 | -8/Materials | Build established: Scavenger-Tank 4548 | -8/Materials | Discovered new exit (range 4) 4585 | -8/Materials | Garrison activated, responded to threat 4696 | -8/Materials | Build established: Scavenger-Mutant 4705 | -8/Materials | Identified Exp. Sensor Array 4794 | -8/Materials | Discovered new exit (range 6) 4803 | -8/Materials | Identified exit to Storage 4965 | -8/Materials | Discovered new exit (range 10) 5065 | -8/Materials | Repaired Adv. Myomer Leg 5091 | -8/Materials | First assault squad dispatched 5122 | -8/Materials | Entered Factory 5122 | -7/Factory | Evolved 2 slots: Utility x2 5345 | -7/Factory | Identified exit to Lower Caves 5476 | -7/Factory | Discovered new exit (range 8) 5491 | -7/Factory | Fabricated Cmb. Antigrav System? 5553 | -7/Factory | Fabricated Cmb. Antigrav System? 5725 | -7/Factory | Local fabrication network quarantined 5948 | -7/Factory | Entered Lower Caves 6170 | -7/Lower Caves | Discovered new exit (range 11) 6456 | -7/Lower Caves | Build established: Hacker-Mutant 6475 | -7/Lower Caves | Identified exit to Lower Caves 6502 | -7/Lower Caves | Entered another Lower Caves area 6523 | -7/Lower Caves | Discovered new exit (range 8) 6566 | -7/Lower Caves | Learned 4 Factory zone layouts 6661 | -7/Lower Caves | Encountered a Warlord checkpoint 6817 | -7/Lower Caves | Discovered new exit (range 14) 6817 | -7/Lower Caves | Spotted 55-XAK(f) 6817 | -7/Lower Caves | Spotted NM-X4Q(f) 6818 | -7/Lower Caves | Encountered a Master Thief 6818 | -7/Lower Caves | Encountered a Master Thief 6819 | -7/Lower Caves | Spotted GX-CUG(f) 6820 | -7/Lower Caves | Encountered a Master Thief 6821 | -7/Lower Caves | Spotted 3C-1T7(f) 6822 | -7/Lower Caves | Encountered a Master Thief 6824 | -7/Lower Caves | Identified exit to Zion 6825 | -7/Lower Caves | Entered Zion 6851 | -7/Zion | Given the Hacking Drone Bay 6863 | -7/Zion | Discovered new exit (range 10) 6898 | -7/Zion | Found Prototype Device 6899 | -7/Zion | Identified Phasing AFG 6944 | -7/Zion | System corruption cleaned by Quarantine Array 6951 | -7/Zion | Learned location of Data Miner (-6) 7033 | -7/Zion | Found Prototype Launcher 7033 | -7/Zion | Identified Gui. Missile Launcher 7119 | -7/Zion | Learned Factory non-interactive machine intel 7141 | -7/Zion | Found CR-A16's Pointy Stick 7186 | -7/Zion | Learned Factory stockpile data 7251 | -7/Zion | Given A8's code to call for help 7296 | -7/Zion | Learned location of Warlord (-5) 7410 | -7/Zion | Discovered new exit (range 4) 7412 | -7/Zion | Saw the warning signs outside the Deep Caves entrance 7412 | -7/Zion | Identified exit to Deep Caves 7465 | -7/Zion | Gained Derelict followers 7483 | -7/Zion | Gained Derelict followers 7532 | -7/Zion | Enhanced Grunt warped into view, answering call for help 7532 | -7/Zion | Enhanced Grunt warped into view, answering call for help 7813 | -7/Zion | Entered Deep Caves 7813 | -7/Deep Caves | Accompanied by 8 allies 7814 | -7/Deep Caves | Met 5H-AD0 7883 | -7/Deep Caves | Build established: Mutant 7991 | -7/Deep Caves | Z-Facility disabled 8062 | -7/Deep Caves | Attacked by Z-Imprinter 8074 | -7/Deep Caves | Destroyed Z-Imprinter 8085 | -7/Deep Caves | Found Prototype Device 8085 | -7/Deep Caves | Identified Zio. Metafield Generator 8122 | -7/Deep Caves | Destroyed 5H-AD0 8126 | -7/Deep Caves | Found Prototype Ballistic Gun 8126 | -7/Deep Caves | Identified 5H-AD0's Sniper Rifle 8446 | -7/Deep Caves | Found Prototype Protection 8446 | -7/Deep Caves | Identified Zio. Weapon Casing 8474 | -7/Deep Caves | Found Zio. Weapon Casing 8682 | -7/Deep Caves | Discovered new exit (range 7) 8687 | -7/Deep Caves | Identified exit to Proximity Caves 9667 | -7/Deep Caves | Found Surveybot 24 Chip 9889 | -7/Deep Caves | Entered Proximity Caves 9889 | -6/Proximity Caves | Accompanied by 6 allies 9912 | -6/Proximity Caves | Learned Factory terminal intel 10020 | -6/Proximity Caves | Spotted B-75 Beast 10027 | -6/Proximity Caves | Allies destroyed B-75 Beast 10256 | -6/Proximity Caves | Discovered new exit (range 12) 10262 | -6/Proximity Caves | Identified exit to Factory 10344 | -6/Proximity Caves | Found Prototype Device 10344 | -6/Proximity Caves | Identified Exp. Thermal Shield 10685 | -6/Proximity Caves | Entered Factory 10685 | -6/Factory | Accompanied by 4 allies 10685 | -6/Factory | Evolved 2 slots: Propulsion x1, Utility x1 10686 | -6/Factory | Identified exit to Lower Caves 10689 | -6/Factory | Loaded intel: 237 non-interactive machine locations 10690 | -6/Factory | Loaded intel: 19 terminal locations 10982 | -6/Factory | Build established: Hacker-Mutant 11316 | -6/Factory | Fabricated S-27 Virus? 11322 | -6/Factory | Sucked down chute 11322 | -6/Factory | Entered Waste 11322 | -6/Waste | The area was eerily silent 11381 | -6/Waste | Build established: Hauler-Mutant 11525 | -6/Waste | Discovered new exit (range 13) 11644 | -6/Waste | Found Damper Plating 11671 | -6/Waste | Identified exit to Factory 11671 | -6/Waste | Entered Factory 12041 | -6/Factory | Discovered new exit (range 15) 12051 | -6/Factory | Identified exit to Factory 12071 | -6/Factory | Build established: Scavenger-Mutant 12100 | -6/Factory | Discovered exit to Lower Caves (range 11) 12122 | -6/Factory | Discovered exit to Factory (range 7) 12245 | -6/Factory | Fabricated S-27 Virus (x4) 12312 | -6/Factory | Fabricated S-27 Virus (x4) 12393 | -6/Factory | Entered Lower Caves 12393 | -6/Lower Caves | Accompanied by 8 allies 12393 | -6/Lower Caves | Spotted 1F-FT8(f) 12394 | -6/Lower Caves | Encountered a Master Thief 12603 | -6/Lower Caves | Identified exit to Lower Caves 13381 | -6/Lower Caves | Attracted the attention of an 0b10 base 13460 | -6/Lower Caves | Learned Research security intel 13460 | -6/Lower Caves | Learned Factory terminal intel 13460 | -6/Lower Caves | Learned Research stockpile data 13560 | -6/Lower Caves | Encountered a Warlord checkpoint 13665 | -6/Lower Caves | Entered another Lower Caves area 13685 | -6/Lower Caves | Discovered exit to Factory (range 5) 13718 | -6/Lower Caves | Encountered a Warlord checkpoint 14159 | -6/Lower Caves | Learned Factory emergency access door positions 14372 | -6/Lower Caves | Learned Factory emergency access door positions 14372 | -6/Lower Caves | Discovered new exit (range 4) 14408 | -6/Lower Caves | Identified exit to Data Miner 14500 | -6/Lower Caves | Entered Data Miner 14500 | -6/Data Miner | Accompanied by 1 ally 14500 | -6/Data Miner | Discovered new exit (range 6) 14514 | -6/Data Miner | Met Data Miner 14534 | -6/Data Miner | Learned location of Section 7 (-3) 14534 | -6/Data Miner | Acquired the access code to Warlord's prototype stash 14541 | -6/Data Miner | Received God Mode back door access code from Data Miner 14559 | -6/Data Miner | Identified exit to Proximity Caves 14613 | -6/Data Miner | Destroyed Data Miner 14616 | -6/Data Miner | Found Prototype Hackware 14617 | -6/Data Miner | Found Prototype Hackware 14619 | -6/Data Miner | Found Prototype Hackware 14625 | -6/Data Miner | Data Conduit disabled 14638 | -6/Data Miner | Entered Proximity Caves 14753 | -5/Proximity Caves | Spotted B-75 Beast 14934 | -5/Proximity Caves | Discovered exit to Factory (range 5) 14938 | -5/Proximity Caves | Entered Factory 14938 | -5/Factory | Evolved 2 slots: Power x1, Utility x1 14939 | -5/Factory | Identified Quantum Router 14940 | -5/Factory | Loaded intel: 22 terminal locations 14958 | -5/Factory | Identified System Mapper 14960 | -5/Factory | Identified exit to Upper Caves 14960 | -5/Factory | Identified exit to Extension 15044 | -5/Factory | Central database locked down 15152 | -5/Factory | Identified Ghost Barrier 15252 | -5/Factory | Build established: Hacker-Mutant 15377 | -5/Factory | Discovered new exit (range 15) 15428 | -5/Factory | Identified exit to Factory 15829 | -5/Factory | Entered Upper Caves 15881 | -5/Upper Caves | Found Alien Artifact 15881 | -5/Upper Caves | Identified Core Expander 15881 | -5/Upper Caves | Installed Core Expander, added new Propulsion slot 15991 | -5/Upper Caves | Encountered a Warlord checkpoint 16127 | -5/Upper Caves | Discovered new exit (range 7) 16134 | -5/Upper Caves | Identified exit to Upper Caves 16137 | -5/Upper Caves | Entered another Upper Caves area 16137 | -5/Upper Caves | Spotted B-75 Beast 16153 | -5/Upper Caves | Identified exit to Warlord 16401 | -5/Upper Caves | Encountered a Warlord checkpoint 16429 | -5/Upper Caves | Attracted the attention of an 0b10 outpost 16552 | -5/Upper Caves | Spotted VM-WF9(f) 16552 | -5/Upper Caves | Spotted 4X-HYI(f) 16554 | -5/Upper Caves | Encountered a Master Thief 16554 | -5/Upper Caves | Encountered a Master Thief 16558 | -5/Upper Caves | Entered Warlord 16615 | -5/Warlord | Found Prototype Device 16669 | -5/Warlord | Met Warlord 16694 | -5/Warlord | Warlord's base attacked by MAIN.C 16737 | -5/Warlord | Found Prototype Energy Gun 16737 | -5/Warlord | Identified Vortex Rail 16773 | -5/Warlord | Opened Warlord's prototype stash 16784 | -5/Warlord | Found Prototype Processor 16784 | -5/Warlord | Identified Exp. Target Analyzer 16792 | -5/Warlord | Found Prototype Reactor 16792 | -5/Warlord | Identified Vortex Chain Reactor 17044 | -5/Warlord | Warlord forces counterattacked 17198 | -5/Warlord | Found Prototype Processor 17198 | -5/Warlord | Identified Exp. Core Analyzer 17267 | -5/Warlord | Discovered new exit (range 15) 17274 | -5/Warlord | Identified exit to Proximity Caves 17295 | -5/Warlord | Spotted Executioner 17369 | -5/Warlord | Warlord base infiltrated, sounded retreat 17374 | -5/Warlord | Spotted Executioner 17529 | -5/Warlord | Spotted Executioner 17538 | -5/Warlord | Spotted Striker 17566 | -5/Warlord | Entered Proximity Caves 17704 | -4/Proximity Caves | Learned 4 Research zone layouts 17886 | -4/Proximity Caves | Discovered exit to Factory (range 15) 17923 | -4/Proximity Caves | Entered Factory 17923 | -4/Factory | Evolved 2 slots: Utility x2 17943 | -4/Factory | Identified exit to Upper Caves 17943 | -4/Factory | Identified exit to Armory 18219 | -4/Factory | Build established: Hacker-Scout 18269 | -4/Factory | Fabricated Mni. Smartbomb Launcher (x1) 18338 | -4/Factory | Fabricated S-27 Virus (x4) 18459 | -4/Factory | Entered Upper Caves 18459 | -4/Upper Caves | Accompanied by 4 allies 18511 | -4/Upper Caves | Learned 8 Factory zone layouts 18511 | -4/Upper Caves | Learned Factory emergency access door positions 18511 | -4/Upper Caves | Learned Extension stockpile data 18511 | -4/Upper Caves | Learned Research garrison access intel 18567 | -4/Upper Caves | Discovered new exit (range 23) 18599 | -4/Upper Caves | Identified exit to Upper Caves 18603 | -4/Upper Caves | Entered another Upper Caves area 18603 | -4/Upper Caves | Accompanied by 1 ally 18604 | -4/Upper Caves | Identified exit to Research 18725 | -4/Upper Caves | A Commander dispatched an escort 18727 | -4/Upper Caves | Learned Extension trap positions 18727 | -4/Upper Caves | Learned Research security intel 18727 | -4/Upper Caves | Learned Armory terminal intel 18772 | -4/Upper Caves | Discovered new exit (range 24) 18864 | -4/Upper Caves | Identified exit to Zhirov 18869 | -4/Upper Caves | Entered Zhirov 18869 | -4/Zhirov | Accompanied by 2 allies 18869 | -4/Zhirov | Discovered new exit (range 3) 18870 | -4/Zhirov | Commander's escort returned to base 18870 | -4/Zhirov | Commander's escort returned to base 18874 | -4/Zhirov | Identified exit to Proximity Caves 18881 | -4/Zhirov | Met Zhirov 18890 | -4/Zhirov | Zhirov requested help retrieving the SGEMP Prototype 18893 | -4/Zhirov | Learned location of Testing (-2) 18893 | -4/Zhirov | Learned location of Command (-1) 18914 | -4/Zhirov | Found Alien Artifact 18914 | -4/Zhirov | Identified Integrated Dissipator 18914 | -4/Zhirov | Installed Integrated Dissipator, increased core heat dissipation (+20) 18925 | -4/Zhirov | Found Alien Artifact 19086 | -4/Zhirov | Entered Proximity Caves 19479 | -3/Proximity Caves | Discovered exit to Research (range 19) 19485 | -3/Proximity Caves | Entered Research 19485 | -3/Research | Evolved 2 slots: Utility x2 19486 | -3/Research | Identified exit to Quarantine 19487 | -3/Research | Identified exit to Research 19490 | -3/Research | Loaded intel: 4 garrison access locations 19523 | -3/Research | Found Exp. Thermal Shield 19560 | -3/Research | Entered Quarantine 19570 | -3/Quarantine | Found Alien Slashing Weapon 19570 | -3/Quarantine | Identified Sigix Broadsword 19588 | -3/Quarantine | Found Alien Energy Cannon 19641 | -3/Quarantine | Found Gamma Bomb Array 19742 | -3/Quarantine | Found Alien Artifact 19812 | -3/Quarantine | Found Alien Artifact 19945 | -3/Quarantine | Discovered exit to Research (range 21) 19955 | -3/Quarantine | Identified Transdimensional Reconstructor 19955 | -3/Quarantine | Identified Core Reset Matrix 19955 | -3/Quarantine | Identified Subatomic Replicator 20071 | -3/Quarantine | Build established: Scavenger-Scout 20174 | -3/Quarantine | Met incapacitated Sigix Warrior 20174 | -3/Quarantine | Lockdown squad dispatched 20181 | -3/Quarantine | Acquired the access code to the Sigix quarantine chamber 20182 | -3/Quarantine | Unlocked Sigix quarantine chamber 20337 | -3/Quarantine | Spotted Lightning 20337 | -3/Quarantine | Spotted Lightning 20337 | -3/Quarantine | Spotted Lightning 20376 | -3/Quarantine | Destroyed Lightning 20410 | -3/Quarantine | Destroyed Lightning 20444 | -3/Quarantine | Found Prototype Energy Cannon 20447 | -3/Quarantine | Found Prototype Energy Cannon 20449 | -3/Quarantine | Found Prototype Device 20449 | -3/Quarantine | Identified Exp. Phase Shifter 20454 | -3/Quarantine | Found Prototype Device 20454 | -3/Quarantine | Identified EM Dispersion Field 20476 | -3/Quarantine | Destroyed Lightning 20484 | -3/Quarantine | Identified EMDS 20488 | -3/Quarantine | Identified Core Cannon 20572 | -3/Quarantine | Spotted Fortress 20588 | -3/Quarantine | Discovered new exit (range 21) 20597 | -3/Quarantine | Identified exit to Section 7 20623 | -3/Quarantine | Entered Section 7 20677 | -3/Section 7 | Found Integrated Dissipator 20677 | -3/Section 7 | Installed Integrated Dissipator, increased core heat dissipation (+20) 20812 | -3/Section 7 | Found Alien Artifact 20929 | -3/Section 7 | Found Integrated Dissipator 20929 | -3/Section 7 | Installed Integrated Dissipator, increased core heat dissipation (+20) 21208 | -3/Section 7 | P-80 Master assimilated allied Director 8c 21351 | -3/Section 7 | Discovered exit to Research (range 15) 21358 | -3/Section 7 | Spotted S7 Guard 21373 | -3/Section 7 | First assault squad dispatched 21417 | -3/Section 7 | Destroyed S7 Guard 21446 | -3/Section 7 | Found Alien Artifact 21446 | -3/Section 7 | Identified Integrated Heat Negator 21446 | -3/Section 7 | Installed Integrated Heat Negator, increased core heat dissipation (+40) 21667 | -3/Section 7 | Build established: Scavenger-Mutant 21836 | -3/Section 7 | Found Integrated Dissipator 21836 | -3/Section 7 | Installed Integrated Dissipator, increased core heat dissipation (+20) 21864 | -3/Section 7 | Spotted Executioner 21864 | -3/Section 7 | Spotted Executioner 21907 | -3/Section 7 | Destroyed Executioner 21916 | -3/Section 7 | Destroyed Executioner 21947 | -3/Section 7 | Found Alien Artifact 21947 | -3/Section 7 | Identified Terrabomb 21947 | -3/Section 7 | Used Terrabomb 21961 | -3/Section 7 | Identified Integrity Redistributor 21961 | -3/Section 7 | Used Integrity Redistributor, redistributed integrity from core (-151) 21962 | -3/Section 7 | Found Alien Artifact 21962 | -3/Section 7 | Identified Matter Drive 21979 | -3/Section 7 | Spotted Striker 21979 | -3/Section 7 | Spotted Striker 22070 | -3/Section 7 | Spotted Executioner 22094 | -3/Section 7 | Spotted B-99 Colossus 22114 | -3/Section 7 | Found Alien Artifact 22114 | -3/Section 7 | Identified LRC Insulator 22114 | -3/Section 7 | Installed LRC Insulator, gained EM resistance (25) 22118 | -3/Section 7 | Found Alien Artifact 22118 | -3/Section 7 | Identified LRC Storage 22118 | -3/Section 7 | Installed LRC Storage, increased inventory capacity (+2) 22142 | -3/Section 7 | Found Alien Artifact 22142 | -3/Section 7 | Identified Integrated Reactor 22142 | -3/Section 7 | Installed Integrated Reactor, increased core energy generation (+10) 22254 | -3/Section 7 | Build established: Hacker-Mutant 22350 | -3/Section 7 | Found Alien Energy Gun 22350 | -3/Section 7 | Identified Sigix Quantum Sheargun 22357 | -3/Section 7 | Found Sigix Quantum Sheargun 22418 | -3/Section 7 | Found Integrity Redistributor 22490 | -3/Section 7 | Spotted S7 Guard 22525 | -3/Section 7 | Destroyed S7 Guard 22565 | -3/Section 7 | Found Alien Artifact 22565 | -3/Section 7 | Identified Core Regenerator 22565 | -3/Section 7 | Used Core Regenerator, restored core integrity (+316) 22654 | -3/Section 7 | Entered Research 22654 | -2/Research | Warlord forces began assault on 0b10 22654 | -2/Research | Evolved 2 slots: Utility x1, Weapon x1 22655 | -2/Research | Identified exit to Testing 22692 | -2/Research | Spotted B-90 Cyclops 22706 | -2/Research | Destroyed 7 combat bots 22726 | -2/Research | Met up with Warlord 22764 | -2/Research | Research machine network offline 22766 | -2/Research | Destroyed B-90 Cyclops 22903 | -2/Research | Borebot progress halted 22915 | -2/Research | Spotted Striker 22922 | -2/Research | Crushed by falling debris 22925 | -2/Research | Spotted B-90 Cyclops 22932 | -2/Research | Entered Testing 22950 | -2/Testing | Found Prototype Protection 22950 | -2/Testing | Identified SHELL Armor 23073 | -2/Testing | Found Prototype Launcher 23073 | -2/Testing | Identified Ragnarok Missile Launcher 23158 | -2/Testing | Found Prototype Device 23158 | -2/Testing | Identified Exp. Hardlight Generator 23199 | -2/Testing | Found Prototype Processor 23199 | -2/Testing | Identified Exp. Melee Analysis Suite 23225 | -2/Testing | Found System Mapper 23246 | -2/Testing | Build established: Scavenger-Mutant 23262 | -2/Testing | Found Prototype Energy Cannon 23262 | -2/Testing | Identified Imp. Potential Cannon 23265 | -2/Testing | Found Imp. Potential Cannon 23322 | -2/Testing | Found Prototype Launcher 23322 | -2/Testing | Identified Z-bomb Delivery System 23372 | -2/Testing | Fabricated Cmb. Linear Gravjet (x2) 23441 | -2/Testing | Garrison activated, responded to threat 23457 | -2/Testing | Discovered new exit (range 13) 23464 | -2/Testing | First assault squad dispatched 23465 | -2/Testing | Found Prototype Energy Cannon 23467 | -2/Testing | Identified Cld. Nova Cannon 23482 | -2/Testing | Identified exit to Access 23483 | -2/Testing | Entered Access 23483 | -1/Access | Evolved 2 slots: Utility x2 23634 | -1/Access | Destroyed 11 combat bots 23680 | -1/Access | Identified exit to Command 23680 | -1/Access | System Mapper fried by hacking feedback 23764 | -1/Access | First assault squad dispatched 24023 | -1/Access | Crushed by falling debris 24224 | -1/Access | Entered Command 24574 | -1/Command | Disengaged cave seal 24574 | -1/Command | Welcomed Warlord to Command 24615 | -1/Command | High security lockdown imminent 24695 | -1/Command | High security lockdown engaged 24754 | -1/Command | Destroyed 12 combat bots 24793 | -1/Command | Used Subatomic Replicator to replicate Integrity Redistributor 24795 | -1/Command | Used Integrity Redistributor, redistributed integrity from core (-144) 24809 | -1/Command | Phase Generator disabled 24884 | -1/Command | Spotted Executioner 24922 | -1/Command | Destroyed 10 combat bots 24944 | -1/Command | Warlord commented on Warlord statues 24946 | -1/Command | Spotted M Guard 24946 | -1/Command | Spotted M Guard 24946 | -1/Command | Spotted Combat Programmer 24947 | -1/Command | Spotted Combat Programmer 24953 | -1/Command | Destroyed M Guard 24965 | -1/Command | Destroyed M Guard 24975 | -1/Command | Destroyed Combat Programmer 24975 | -1/Command | All MAIN.C guards destroyed 25019 | -1/Command | Met MAIN.C 25022 | -1/Command | 0b10 Conduit disabled 25055 | -1/Command | Spotted Striker 25057 | -1/Command | Destroyed MAIN.C Shell 25057 | -1/Command | Spotted Striker 25060 | -1/Command | MAIN.C activated Command garrisons 25060 | -1/Command | Surrendered to MAIN.C 25060 | -1/Command | Loaded intel: 64 machine locations 25060 | -1/Command | Loaded intel: 99 trap records 25060 | -1/Command | Identified exit to Surface 25060 | -1/Command | Discovered exit to Surface (range 38) 25060 | -1/Command | Discovered exit to Surface (range 95) 25080 | -1/Command | Build established: Scavenger-Gladiator 25097 | -1/Command | Found Prototype Ballistic Cannon 25097 | -1/Command | Identified Omega Cannon 25110 | -1/Command | Found Prototype Device 25110 | -1/Command | Identified Exp. Focal Shield 25119 | -1/Command | Found Prototype Protection 25119 | -1/Command | Identified Centrium Heavy Armor Plating 25126 | -1/Command | Found Prototype Reactor 25126 | -1/Command | Identified Zero-point Reactor 25133 | -1/Command | Found Vortex Chain Reactor 25159 | -1/Command | MAIN.C activated Command garrisons 25195 | -1/Command | Unknown forces attacked Command 25196 | -1/Command | Spotted EQ-017 25234 | -1/Command | Destroyed EQ-017 25251 | -1/Command | Spotted EQ-014 25271 | -1/Command | Found Exp. Core Analyzer 25283 | -1/Command | Spotted EQ-018 25284 | -1/Command | Spotted EQ-035 25289 | -1/Command | Spotted EQ-002 25289 | -1/Command | Spotted EQ-020 25312 | -1/Command | Warped through subspace 25316 | -1/Command | Spotted EQ-010 25316 | -1/Command | Destroyed EQ-014 25321 | -1/Command | Destroyed EQ-010 25331 | -1/Command | Spotted EQ-028 25355 | -1/Command | Destroyed EQ-028 25356 | -1/Command | Spotted EQ-032 25381 | -1/Command | Destroyed EQ-032 25384 | -1/Command | Spotted EQ-038 25436 | -1/Command | Destroyed EQ-038 25458 | -1/Command | Found Exp. Phase Shifter 25477 | -1/Command | Spotted EQ-051 25497 | -1/Command | Destroyed EQ-051 25581 | -1/Command | Spotted EQ-079 25602 | -1/Command | Destroyed EQ-079 25604 | -1/Command | Spotted EQ-103 25617 | -1/Command | Destroyed EQ-103 25627 | -1/Command | Found Exp. Focal Shield 25636 | -1/Command | Spotted EQ-094 25659 | -1/Command | Destroyed EQ-094 25675 | -1/Command | Spotted EQ-036 25692 | -1/Command | Spotted EQ-076 25697 | -1/Command | Destroyed EQ-036 25731 | -1/Command | Spotted EQ-066 25732 | -1/Command | Destroyed EQ-076 25768 | -1/Command | Destroyed EQ-066 25802 | -1/Command | Spotted EQ-151 25807 | -1/Command | Spotted EQ-143 25823 | -1/Command | Found Prototype Ballistic Gun 25823 | -1/Command | Identified Multirail 25830 | *** | Escaped! Last Messages --------------- 25801_ Acquired Cmb. Linear Gravjet. 25802_ HV Slug penetrates EQ-151. 25802_ HV Slug penetrates Wall. 25808_ HV Slug penetrates EQ-151. 25808_ Penetrated by Slug. 25808_ Slug penetrates Wall. 25810_ System corrupted: Component data lost. 25810_ Slug penetrates Wall. 25812_ Knocked back. 25813_ Dropped Exp. Energy Well. 25814_ Extracted 98 energy. 25815_ Knocked back. 25815_ Slug penetrates Wall. 25815_ Slug penetrates Earth. 25818_ Acquired 31 matter. 25819_ Acquired 105 matter. 25823_ Acquired Prototype Ballistic Gun. 25823_ Identified Multirail. 25824_ Dropped Multirail. 25825_ System corrupted: Matter fused (-9). Map ----- +----------------------------------------------------+ | ?????# """ #??# #???????????????????? | | ?????#""T""#??# #???????????????????? | | ?#####"" ""############+#################????????? | | ?# == !=!!** #????????? | | ?# =% !]]%!= #????????? | | ?# !##!##+####### #????????? | | ?# #!!! #?# #????????? | | ?# ! # ### ![ #########? | | ## # # # ![ #? | | # # # [ T#? | | #######+####+#####+##### # ######### ##? | | # ## ! #??###### ##? | | # ## % ### ##] ] =#? | | + ## [!*% # ] =#? | | # ] ## = !]! # ** =#? | | # ## !!! *=## # ## ! ==#? | | # ! ##! !!! * ## ## #########? | | ################# !!! ## # ##??????? | | #????# #?# # * /# #??????? | | #????# #?#+######### ! # #??????? | | #????# #?# #??????# # #??????? | | ###### ### ###????### !=!# #??????? | | ## # # ! #??#######!!!!# ###??????? | | #"""## # #??# !!!!*%! #????????? | | "# #[ #??# !==![=! #????????? | | "" " % #??# @ ##]#*%[#! #????????? | | "" #=[ #??# ######]# #????????? | | = "#########"=% #??####### ## # #????????? | | !!! "" #%* #???????# # #????????? | | *= ## #=% ######### # ! #????????? | | ""#### "== # ####???????? | | !=! + #* ""####### #### #???????? | | !![ # " # # # ###???????? | | ! ^ # # # #????????? | | + # # ## ###?######## | | #"### # #* #### #?#??????? | | ###?# * # !=#!!! ## ##?#?###### | | #???#####+#### =]#%!* " # #??#?#""""" | | #???????# #??# =%"===! """ ##??#?#"" | | #???????# #??# !#[!!! "" +#"##?#?#""""" | | #??######+#### #!!] # #?#?#"""" | | #??# # #! # ! = #?#?#" " | | #### # # # %= #?#?#"" | | + # # ""T"" + % #?#?#"" | | # !! = # # """"" # = #?#?# " | | # !! # ############# #?#?# " | | + ! += #???????????# #?#?# " | | "#### ] #%= #???????????# #?#?#" | | # # #???####?#### #?#?#" | | ####+###### = ##?## #?# # #?#?# | +----------------------------------------------------+ Best States ------------- Heat Dissipation 204 Coolant Potential 120 Energy Generation 70 Energy Capacity 1700 Matter Stores 300 Matter Capacity 300 Sight Range 23 Robot Scan Range 30 Terrain Scan Range 24 Terrain Scan Density 2010 Power Amplification 30 Armor Coverage 1900 Resistance: KI 30 Resistance: TH 30 Resistance: EX 90 Resistance: EM 100 Core Shielding 40 Weapon Shielding 100 Weapon Cycling 25 Phase Shifting 20 Evasion (%) 94 Targeting Accuracy 8 Melee Accuracy 12 Target Analysis 12 Core Analysis 15 Armor Integrity Analysis 66 Recoil Reduction 1 Salvage Targeting 2 Offensive Hacking 32 Defensive Hacking 25 Item Schematics ----------------- Cmb. Antigrav System | -8/Materials | Scanalyzed Adv. Myomer Leg | -8/Materials | Scanalyzed Exp. Sensor Array | -8/Materials | Scanalyzed Adv. Transmission Jammer | -8/Materials | Scanalyzed Flak Gun | -7/Factory | Hacked Lrg. Storage Unit | -6/Factory | Hacked Combat Drone Bay | -6/Data Miner | Free Lgt. Regenerative Plating | -6/Data Miner | Free Triangulator | -6/Data Miner | Free Cloaking Device | -6/Data Miner | Free Mni. Smartbomb Launcher | -6/Data Miner | Free Plasma Sword | -6/Data Miner | Free Cold Fusion Reactor | -5/Factory | Hacked Proton Cannon | -5/Factory | Scanalyzed Particle Reactor | -5/Factory | Hacked Adv. Heavy Treads | -5/Factory | Hacked Assault Drone Bay | -4/Zhirov | Free Exp. Heat Sink | -4/Zhirov | Free Exp. Optical Array | -4/Zhirov | Free Imp. Arc Thrower | -4/Zhirov | Free Cmb. Linear Gravjet | -3/Quarantine | Hacked Robot Schematics ------------------ S-27 Virus | -6/Factory | Hacked G-50 Soldier | -6/Data Miner | Free P-70 Sage | -6/Data Miner | Free I-36 Angel | -6/Data Miner | Free I-47 Archangel | -6/Data Miner | Free Fabricated ------------ Cmb. Antigrav System | x2 | -7/Factory Cmb. Antigrav System | x2 | -7/Factory S-27 Virus | x4 | -6/Factory S-27 Virus | x4 | -6/Factory S-27 Virus | x4 | -6/Factory Mni. Smartbomb Launcher | x1 | -4/Factory S-27 Virus | x4 | -4/Factory Cmb. Linear Gravjet | x2 | -2/Testing Alien Tech Used ----------------- Core Expander Integrated Dissipator Sigix Broadsword Core Cannon Integrated Heat Negator Terrabomb Integrity Redistributor Matter Drive LRC Insulator LRC Storage Integrated Reactor Sigix Quantum Sheargun Core Regenerator Subatomic Replicator Transdimensional Reconstructor Achievements -------------- All-out Warlord Artifact Hunter Deadly Force Dodgeball, But With Guns Great Explorer Superinsulated Challenges ------------ None Game ------ Seed AccelerationDataSheargun Manual? 0 Play Time 06:52:25 Cumulative 166.8 hours Start 2020.11.14 @ 12:33:54 End 2020.11.14 @ 21:16:35 Sessions 5 Manual Loads 0 Difficulty Rogue Special Mode Halloween2020/ForbiddenLore Game No. 53 Rogue 38 Adventurer 15 Explorer 0 Win Type 0 Total 5 Types 2/0/1/1/1/0/0/0/0 Lore% 80 Gallery% 79 Achievement% 67 Wizard Run 0 Options --------- ASCII 0 Keyboard 0 Movement Numpad Keybinds 0 Fullscreen 1 Font 18/SmallcapsGlow Map View 76x50 Tactical HUD 1 Map Filters NONE Filters NONE Steam 1 RUN: 5a00f006-3073-4e4d-9863-b27957fc9253